Workbook

Sheet Bill 1-P&G
A1: CONTRACT NUMBER: | C1: CONSTRUCTION OF A NEW LAPA AND THE REFURBISHMENT OF GATE HOUSE AND ABLUTIONS, EXTERNAL AREAS AND THE INSPECTION AND WORKS TO EXISTING AND NEW SERVICES AT THE MOKOPANE BIODIVERSITY CONSERVATION CENTRE | S1: Bill
A2: G540/2024 | S2: 1
A3: Item | B3: DESCRIPTION | Q3: RATE
A4: No. | M4: UNIT | O4: QUANTITY | S4: AMOUNT
B7: BILL NO. 1
B9: PRELIMINARIES AND GENERAL
B11: MEANING OF TERMS "TENDER / TENDERER"
B13: Any reference to the words "Tender" or "Tenderer" herein and/or
B14: in any other documentation shall be construed to have the same
B15: meaning as the words "Bid" or "Bidder"
B17: PRELIMINARIES
B19: The JBCC Preliminaries, May 2018 edition for use with the JBCC
B20: Principal Building Agreement Edition 6.2 is taken to be incorporated
B21: herein. The tenderer is deemed to have referred to these
B22: documents for the full intent and meaning of each clause. These
B23: clauses are referred to by number and heading only. Where
B24: standard clauses or options are not applicable to the contract such
B25: modifications or corrections as are necessary are given under each
B26: relevant clause. Where an item is not relevant to this specific
B27: contract such item is marked "N/A" signifying "Not Applicable"
B29: PRICING OF PRELIMINARIES
B31: Should Option A, as set out in clause B10.3.1 hereinafter be used
B32: for the adjustment of preliminaries then each item priced is to be
B33: allocated to one or more of the three categories Fixed, Value
B34: Related or Time Related the spaces provided under each item
B36: Items not priced in these Preliminaries shall be deemed to be
B37: included elsewhere in these Bills of Quantities
B39: SECTION A: JBCC PRINCIPAL BUILDING AGREEMENT
B41: DEFINITIONS AND INTERPRETATION
A43: 1 | B43: A1.0 | C43: DEFINITIONS AND INTERPRETATION
B45: Clause 1.0
B47: Clause 1.1 | D47: Definition of "Commencement Date" is added:
B49: "COMMENCEMENT DATE" means the date that the agreement,
B50: made in terms of the Form of Offer and Acceptance, comes into effect
B52: Clause 1.1 Definition of "Construction Guarantee" is amended by
B53: replacing it with the following:
B55: "CONSTRUCTION GUARANTEE" means a guarantee at call
B56: obtained by the contractor from an institution approved by the
B57: employer in terms of the employer's construction guarantee form as
B58: selected in the schedule
B60: Clause 1.1 Definition of "Construction Period" is amended by
B61: replacing it with the following:
B63: "CONSTRUCTION PERIOD" means the period commencing on the
B64: commencement date and ending on the date of practical completion
B66: Clause 1.1 Definition of "Corrupt Practice" is added:
B68: "CORRUPT PRACTICE" means the offering, giving, receiving or
B69: soliciting of anything of value to influence the action of a public
B70: official in the procurement process or in contract execution
A74: BILL No. 1
B75: Bill No. 1 PRELIMINARIES AND GENERAL carried to collection
A77: CONTRACT NUMBER: | C77: =C1 -> CONSTRUCTION OF A NEW LAPA AND THE REFURBISHMENT OF GATE HOUSE AND ABLUTIONS, EXTERNAL AREAS AND THE INSPECTION AND WORKS TO EXISTING AND NEW SERVICES AT THE MOKOPANE BIODIVERSITY CONSERVATION CENTRE | S77: Bill
A78: =A2 -> G540/2024 | S78: 1
A79: ITEM | B79: PAYMENT | C79: DESCRIPTION | Q79: RATE
A80: NO | B80: REFERS | M80: UNIT | O80: QUANTITY | S80: AMOUNT
B81: TO
B83: Clause 1.1 Definition of "Fraudulent Practice" is added:
B85: "FRAUDULENT PRACTICE" means a misrepresentation of facts in
B86: order to influence a procurement process or the execution of a
B87: contract to the detriment of any tenderer and includes collusive
B88: practice among tenderers (prior to or after the tender submission)
B89: designed to establish tender prices at artificial non- competitive
B90: levels and to deprive the tenderer of the benefits of free and open
B91: competition
B93: Clause 1.1 | D93: Definition of "Interest" is amended by replacing it with
B95: "INTEREST" means the interest rates applicable on this contract,
B96: whether specifically indicated in the relevant clauses or not, will be
B97: the rate as determined by the Minister of Finance, from time to
B98: time, in terms of section 80(1)(b) of the Public Finance Management
B99: Act, 1999 (Act No. 1 of 1999)
B101: Clause 1.1 | D101: Definition of "Principal Agent" is amended by
D102: replacing it with the following:
B104: "PRINCIPAL AGENT" means the person or entity appointed by the
B105: employer and named in the schedule. In the event of a principal
B106: agent not being appointed, then all the duties and obligations of a
B107: principal agent as detailed in the agreement shall be fulfilled by
B108: a representative of the employer as named in the schedule
B110: Clause 1.1 | D110: Definition of "Security" is amended by replacing it with
D111: the following:
B113: "SECURITY" means the form of security provided by the employer
B114: or contractor, as stated in the schedule, from which the contractor
B115: or employer may recover expense or loss
B117: No clause
B119: Fixed:________Value related:_________Time related:_________ | M119: Item
A121: 2 | B121: A2.0 | D121: LAW, REGULATIONS AND NOTICES
B123: Clause 2.0
B125: Note: A separate clause has been included in Section C : Specific
B126: Preliminaries of the bills of quantities / lump sum document for the
B127: contractor to have the opportunity to price for all the requirements of
B128: the Occupational Health and Safety Act, Construction Regulations
B129: and Health and Safety Specification
B131: Fixed:________Value related:_________Time related:_________ | M131: Item
A133: 3 | B133: A3.0 | D133: OFFER AND ACCEPTANCE
B135: Clause 3.0
B137: Fixed:________Value related:_________Time related:_________ | M137: Item
A139: 4 | B139: A4.0 | D139: CESSION AND ASSIGNMENT
B141: Clause 4.0
B143: Fixed:________Value related:_________Time related:_________ | M143: Item
A149: BILL No. 1
B150: Bill No. 1 PRELIMINARIES AND GENERAL carried to collection
A152: CONTRACT NUMBER: | C152: =C77 -> CONSTRUCTION OF A NEW LAPA AND THE REFURBISHMENT OF GATE HOUSE AND ABLUTIONS, EXTERNAL AREAS AND THE INSPECTION AND WORKS TO EXISTING AND NEW SERVICES AT THE MOKOPANE BIODIVERSITY CONSERVATION CENTRE | S152: Bill
A153: =A78 -> G540/2024 | S153: 1
A154: ITEM | B154: PAYMENT | C154: DESCRIPTION | Q154: RATE
A155: NO | B155: REFERS | M155: UNIT | O155: QUANTITY | S155: AMOUNT
B156: TO
A158: 5 | B158: A5.0 | D158: DOCUMENTS
B160: Clause 5.0
B162: Clause 5.7 is amended by the addition of the following:
B164: The contractor shall supply and keep a copy of the JBCC Series 2000
B165: Principal Building Agreement and Preliminaries applicable to this
B166: contract on the site, to which the employer, principal agent and agents
B167: shall have access at all times
B169: Fixed:________Value related:_________Time related:_________ | M169: Item
A171: 6 | B171: A6.0 | D171: EMPLOYER'S AGENTS
B173: Clause 6.0
B175: Clause 6.1 is amended by the addition of the following:
B177: This clause is amended to include clauses 26.7 in terms of which the
B178: employer has retained its authority and has not given a mandate to the
B179: principal agent and in terms of which the employer sign all documents
B181: Fixed:________Value related:_________Time related:_________ | M181: Item
A183: 7 | B183: A7.0 | D183: DESIGN RESPONSIBILITY
B185: Clause 7.0
B187: Clause 7.3 is amended by replacing it with the following:
B189: No clause
B191: Fixed:________Value related:_________Time related:_________ | M191: Item
B193: INSURANCES AND SECURITIES
A195: 8 | B195: A8.0 | D195: WORKS RISK
B197: Clause 8.0
B199: Fixed:________Value related:_________Time related:_________ | M199: Item
A201: 9 | B201: A9.0 | D201: INDEMNITIES
B203: Clause 9.0
B205: Fixed:________Value related:_________Time related:_________ | M205: Item
A207: 10 | B207: A10.0 | D207: INSURANCES
B209: Clause 10.0
B211: Clause 10.0 | D211: is amended by the addition of the following clauses:
B213: 10.11 | D213: Damage to the Works
B215: (a) | D215: Without in any way limiting the contractor's obligations
D216: in terms of the contract, the contractor shall bear the
D217: full risk of damage to and/or destruction of the works
D218: by whatever cause during construction of the
D219: works and hereby indemnifies and holds harmless the
D220: employer against any such damage. Thecontractor
D221: shall take such precautions and security measures and
D222: other steps for the protection and security of the works
D223: as the contractor may deem necessary
A225: BILL No. 1
B226: Bill No. 1 PRELIMINARIES AND GENERAL carried to collection
A228: CONTRACT NUMBER: | C228: =C152 -> CONSTRUCTION OF A NEW LAPA AND THE REFURBISHMENT OF GATE HOUSE AND ABLUTIONS, EXTERNAL AREAS AND THE INSPECTION AND WORKS TO EXISTING AND NEW SERVICES AT THE MOKOPANE BIODIVERSITY CONSERVATION CENTRE | S228: Bill
A229: =A153 -> G540/2024 | S229: 1
A230: ITEM | B230: PAYMENT | C230: DESCRIPTION | Q230: RATE
A231: NO | B231: REFERS | M231: UNIT | O231: QUANTITY | S231: AMOUNT
B232: TO
B234: (b) | D234: The contractor shall at all times proceed immediately
D235: to remove or dispose of any debris arising from damage
D236: to or destruction of the works and to rebuild, restore,
D237: replace and/or repair the works
B239: (c) | D239: The employer shall carry the risk of damage to or
D240: destruction of the works and materials paid for by the
D241: employer that is the result of the excepted risks as set
D242: out in 10.12
B244: (d) | D244: Where the employer bears the risk in terms of this
D245: contract, the contractor shall, if requested to do so,
D246: reinstate any damage or destroyed portions of the
D247: works and the costs of such reinstatement shall be
D248: measured and valued in terms of 27.0 hereof
B250: 10.12 | D250: Injury to Persons or loss of or damage to
D251: Properties
B253: (a) | D253: The contractor shall be liable for and hereby
D254: indemnifies the employer against any liability, loss,
D255: claim or proceeding whether arising in common law or
D256: by statute, consequent upon personal injuries to or the
D257: death of any person whomsoever arising out of or in
D258: the course of or caused by the execution of the works
D259: unless due to any act or negligence of any person for
D260: whose actions the employer is legally liable
B262: (b) | D262: The contractor shall be liable for and hereby
D263: indemnifies the employer against any liability, loss,
D264: claim or proceeding consequent upon loss of or
D265: damage to any moveable or immovable or personal
D266: property or property contiguous to the site, whether
D267: belonging to or under the control of the employer or
D268: any other body or person, arising out of or in the
D269: course of or by reason of the execution of the works
D270: unless due to any act or negligence of any person for
D271: whose actions the employer is legally liable
B273: (c) | D273: The contractor shall, upon receiving a contract
D274: instruction from the principal agent, cause the same
D275: to be made good in a perfect and workmanlike manner
D276: at his own cost and in default thereof the employer shall
D277: be entitled to cause it to be made good and to recover
D278: he cost thereof from the contractor or to deduct the
D279: same from amounts due to the contractor | X279: R17,068,750.00
B281: (d) | D281: The contractor shall be responsible for the protection
D282: and safety of such portions of the premises placed
D283: under his control by the employer for the purpose of | X283: =25%*X279 -> R4,267,187.50
D284: executing the works until the issue of the certificate of
D285: practical completion
B287: (e) | D287: Where the execution of the works involves the risk of
D288: removal of or interference with support to adjoining
D289: properties including land or structures or any structures
D290: to be altered or added to, the contractor shall obtain
... 1640 more rows

Sheet Bill 2-Alterations
A1: CONTRACT NUMBER: | C1: ='Bill 1-P&G'!C1 -> CONSTRUCTION OF A NEW LAPA AND THE REFURBISHMENT OF GATE HOUSE AND ABLUTIONS, EXTERNAL AREAS AND THE INSPECTION AND WORKS TO EXISTING AND NEW SERVICES AT THE MOKOPANE BIODIVERSITY CONSERVATION CENTRE | S1: Bill
A2: ='Bill 1-P&G'!A2 -> G540/2024 | S2: 2
A3: Item | B3: DESCRIPTION | Q3: RATE
A4: No. | M4: UNIT | O4: QUANTITY | S4: AMOUNT
B7: BILL NO. 2
B9: ALTERATION & REMOVAL WORKS
B11: SUPPLEMENTARY PREAMBLES
B13: REMOVAL OF EXISTING WORK
B15: SPECIAL PREAMBLES
B17: REMOVE
B19: The term "remove" shall mean breaking out as required to remove
B20: the item described, disposal of all rubble and old materials, and
B21: making good all work disturbed to match existing.
B23: Remove walls or partitions shall mean breaking down complete
B24: to structure of walls, etc. and trimming up edges and disposal
B25: of rubble and all old materials from site (old materials as
B26: elsewhere described).
B28: Prices shall include for protecting adjacent surfaces against
B29: damage and .repairing such damage should it occur.
B31: OLD MATERIAL BECOMES THE PROPERTY OF THE
B32: CONTRACTOR
B34: Old material from the alterations except where described for re-use
B35: or handing over, will become the property of the Contractor for
B36: which Credit must be allowed.
B38: OLD MATERIAL MUST BE CARTED AWAY
B40: Old material from the alterations except where described for re-use
B41: or handing over, as well as all debris must regularly be carted away
B42: from site and not be accumulated on site.
B44: OLD MATERIAL MAY NOT BE RE-USED
B46: No old material may be re-used for new work except where it is
B47: specifically described as set aside for re-use.
B49: DISPOSAL OF DEBRIS, ETC
B51: The Contractor shall be responsible for the removal from the site of
B52: all materials, debris and rubbish resulting from the .
B53: alterations/demolitions
B55: GENERAL
B57: Damage To Persons And Property
B59: All demolitions, pulling down, alterations etc., are to be carried out
B60: carefully and in the safest possible manner. The Contractor is to .
B61: ascertain that all alterations are structurally practicable and safe
B62: and he will be held solely responsible for any damage to property
B63: or work adjoining the pulling down and must make good at his own
B64: expense
B66: Programming Of The Works
B68: The programming of demolitions and alterations will have to be
B69: co-ordinated with the Principal Agent.
A74: BILL No. 2
B75: Bill No. 2 ALTERATION & REMOVAL WORKS carried to collection
A77: CONTRACT NUMBER: | C77: =C1 -> CONSTRUCTION OF A NEW LAPA AND THE REFURBISHMENT OF GATE HOUSE AND ABLUTIONS, EXTERNAL AREAS AND THE INSPECTION AND WORKS TO EXISTING AND NEW SERVICES AT THE MOKOPANE BIODIVERSITY CONSERVATION CENTRE | S77: Bill
A78: =A2 -> G540/2024 | S78: =S2 -> 2
A79: ITEM | B79: PAYMENT | C79: DESCRIPTION | Q79: RATE
A80: NO | B80: REFERS | M80: UNIT | O80: QUANTITY | S80: AMOUNT
B81: TO
B83: Care Of Utility Services
B85: Special care is to be exercised not to interfere with any drains,
B86: electrical supply, data, or telephone cables and fittings to same.
B87: Notice is to be given to the Principal Agent when any d
B88: isconnections, removal of wires etc. are necessary and the
B89: Contractor is to afford every facility to the workmen carrying out this
B90: work. Permission must be obtained from the Principal Agent
B91: before any services are cut off at any time.
B93: Temporary Shoring Etc.
B95: Prices are to include for providing, fixing and maintaining in position
B96: generally as required all temporary shoring, needling, strutting etc.,
B97: necessary for the proper execution of the alterations in this
B98: Contract and for removing same.
B100: Supervision
B102: The demolition work is to be executed in a workmanlike, practical .
B103: and safe manner under the continual supervision of a competent
B104: foremen.
B106: Protection of existing structures/features etc.
B108: The contractor's rates is to allow for provision for protecting all
B109: existing structures, walls, trees etc. within the vicinity of works
B110: during construction.
B112: Reinstatement of existing areas
B114: The contractor to note as per architects specifications that areas
B115: worked on and around are to be reinstated to its original condition
B116: and state where specified.
B118: Treatment of cut surfaces
B120: The contractor's rates is to allow for treating all cut surfaces of
B121: timber/wooden components with approved enseal.
B123: REMOVAL OF EXISTING WORK
B125: Prices for removal must include for cutting and breaking down into
B126: manageable sizes bearing in mind the restrictions which apply to
B127: means of disposal.
B129: Contractors, where possible, must provide a credit to the
B130: Employer for all items that may have any salvage value.
B132: Tenderers are advised to study the Model Preambles for
B133: Trades before pricing this bill.
B135: TEMPORARY BARRIERS, SCREENS, ETC
B137: Temporary barriers, screens, hoarding, etc. including
B138: removal and making good upon completion
A140: 1 | B140: Fencing 1.8m high to Principal Agents Approval including netting | M140: m | O140: 200
B141: fixed to fence, corners, stays etc.
A143: 2 | B143: Extra over fencing for single pedestrian gate 900mm x 1800mm | M143: No | O143: 1
B144: high including frame, hinges, lockset and handles to temporary
B145: fencing
B147: CONCRETE
B149: Breaking through existing in-situ slab for new apron
A151: 3 | B151: Break out and remove reinforced concrete | M151: m³ | O151: 85
A156: BILL No. 2
B157: =B75 -> Bill No. 2 ALTERATION & REMOVAL WORKS carried to collection
A159: CONTRACT NUMBER: | C159: =C77 -> CONSTRUCTION OF A NEW LAPA AND THE REFURBISHMENT OF GATE HOUSE AND ABLUTIONS, EXTERNAL AREAS AND THE INSPECTION AND WORKS TO EXISTING AND NEW SERVICES AT THE MOKOPANE BIODIVERSITY CONSERVATION CENTRE | S159: Bill
A160: =A78 -> G540/2024 | S160: =S78 -> 2
A161: ITEM | B161: PAYMENT | C161: DESCRIPTION | Q161: RATE
A162: NO | B162: REFERS | M162: UNIT | O162: QUANTITY | S162: AMOUNT
B163: TO
B165: CLEANING EXISTING WALLS
B167: Cleaning down existing face brick and stone surfaces
B168: Thoroughly clean down existing surfaces by means of high
B169: pressure water jet (minimum 250 bar) and chemicals, remove
B170: all flaking substances, fungal marks, grease and all other
B171: contaminants, etc, as described in the specification
A173: 4 | B173: Vertical and horizontal face brickwork and stone cladding | M173: m² | O173: 414
B175: ROOF COVERING/STRUCTURE
B177: Examing of existing roof and making good
A179: 5 | B179: Examining roofs check for roof leaks, check and fix loose timber | M179: m² | O179: 177
B180: trusses, supports, rafters including ridge cappings and securing
B181: loose nails, replacing missing or defective screws and/or nails with
B182: 120mm galvanised steel drive screws, making good holes with
B183: approved sealant or waterproofing as specified by the architect to
B184: render watertight and leave in good order
B186: Carefully taking down and removing roofs
A188: 6 | B188: Roofs including thatch and purlin laths while securing existing | M188: m² | O188: 177
B189: trusses in place
A191: 7 | B191: Treat existing trusses measured net with two coats Powafix or | M191: m² | O191: 177
B192: similar and approved creosote protective coating
B194: Carefully taking down and removing fascias, bargeboards, etc.
A196: 8 | B196: Fascias and bargeboards. | M196: m | O196: 89
B198: CEILINGS, PARTITIONS & ACCESS FLOORING
B200: Carefully take down/out and remove ceilings including
B201: brandering, hangers, etc.
A203: 9 | B203: Ceilings | M203: m² | O203: 169
A205: 10 | B205: Cornice | M205: m | O205: 89
B207: METALWORK
B209: Carefully taking down and removing
A211: 11 | B211: Metal fencing including posts etc. | M211: m² | O211: 130
B213: PLUMBING & DRAINAGE
B215: Carefully taking out and remove sanitary fittings, taps, waste
B216: fittings, etc including making safe, disconnecting piping,
B217: cutting back, sealing exposed water supply pipes and waste
B218: pipes etc. and removing
A220: 12 | B220: Gutters and down pipes | M220: m | O220: 115
B222: PAVING AND KERBING
B224: Taking out and remove external paving
A226: 13 | B226: Paving bricks/blocks, including sand bedding | M226: m² | O226: 338
A228: 14 | B228: Concrete kerbing including haunching and bedding | M228: m | O228: 450
A233: BILL No. 2
B234: =B157 -> Bill No. 2 ALTERATION & REMOVAL WORKS carried to collection
A236: CONTRACT NUMBER: | C236: =C159 -> CONSTRUCTION OF A NEW LAPA AND THE REFURBISHMENT OF GATE HOUSE AND ABLUTIONS, EXTERNAL AREAS AND THE INSPECTION AND WORKS TO EXISTING AND NEW SERVICES AT THE MOKOPANE BIODIVERSITY CONSERVATION CENTRE | S236: Bill
A237: =A160 -> G540/2024 | S237: =S160 -> 2
A238: ITEM | B238: PAYMENT | C238: DESCRIPTION | Q238: RATE
A239: NO | B239: REFERS | M239: UNIT | O239: QUANTITY | S239: AMOUNT
B240: TO
B242: BUILDING UP OPENINGS
B244: Sundries | M244: m | O244: 4
A246: 15 | B246: Cutting/grinding through existing walls where cracks have occurred
B247: in preparation for new sealant (sealant measured elsewhere)
A249: 16 | B249: Cutting and toothing new brickwork to existing | M249: m² | O249: 1
B251: BUDGETARY ALLOWANCES
B253: The following Budgetary Allowances are for work to be
B254: executed by the Sub-Contractor or specialist suppliers and
B255: priced at Bill rates or rates to be agreed and to be used as
B256: directed by the Principal Agent and to be deducted in whole
B257: or in part if not required
A259: 17 | B259: Provide the sum of R50 000.00 (Fifty Thousand) for breaking | M259: Item | S259: R50,000.00
B260: down/demolishing and removing existing structures from parking
B261: lot as directed by architect
A263: 18 | B263: Provide the sum of R50 000.00 (Fifty Thousand) for additional | M263: Item | S263: R50,000.00
B264: general work sill to be designed and will/may be carried out by
B265: the contractor
A311: =A233 -> BILL No. 2
B312: =B234 -> Bill No. 2 ALTERATION & REMOVAL WORKS carried to collection
A314: CONTRACT NUMBER: | C314: =C1 -> CONSTRUCTION OF A NEW LAPA AND THE REFURBISHMENT OF GATE HOUSE AND ABLUTIONS, EXTERNAL AREAS AND THE INSPECTION AND WORKS TO EXISTING AND NEW SERVICES AT THE MOKOPANE BIODIVERSITY CONSERVATION CENTRE | S314: Bill
A315: =A237 -> G540/2024 | S315: =S2 -> 2
A316: ITEM | B316: PAYMENT | C316: DESCRIPTION | Q316: RATE
A317: NO | B317: REFERS | M317: UNIT | O317: QUANTITY | S317: AMOUNT
B318: TO
B320: =B9 -> ALTERATION & REMOVAL WORKS
B322: COLLECTION
B324: Total Brought Forward from Page No. | M324: 132
M326: =M324+1 -> 133
M328: =M326+1 -> 134
M330: =M328+1 -> 135
A390: =A74 -> BILL No. 2
B391: =B312 -> Bill No. 2 ALTERATION & REMOVAL WORKS carried to collection

Sheet Bill 3-Earthworks
A1: CONTRACT NUMBER: | C1: ='Bill 1-P&G'!C1 -> CONSTRUCTION OF A NEW LAPA AND THE REFURBISHMENT OF GATE HOUSE AND ABLUTIONS, EXTERNAL AREAS AND THE INSPECTION AND WORKS TO EXISTING AND NEW SERVICES AT THE MOKOPANE BIODIVERSITY CONSERVATION CENTRE | S1: Bill
A2: ='Bill 1-P&G'!A2 -> G540/2024 | S2: 3
A3: Item | B3: DESCRIPTION | Q3: RATE
A4: No. | M4: UNIT | O4: QUANTITY | S4: AMOUNT
B7: BILL NO. 3
B9: EARTHWORKS
B11: SUPPLEMENTARY PREAMBLES
B13: Nature of material to be excavated
B15: A geotechnical investigation has been carried out on site and
B16: the report is available from the Engineers. The site is located on
B17: transported sandy and gravelly soils that are underlain by
B18: quartzite bedrock. Descriptions of excavations shall be deemed
B19: to include all ground conditions classifiable as "earth" described
B20: in the above report and where conditions of a more difficult
B21: character are indicated these are separately measured.
B23: Carting away of excavated material
B25: Descriptions of carting away of excavated material shall be
B26: deemed to include loading excavated material onto trucks
B27: directly from the excavations or, alternatively, from stock piles
B28: situated on the building site and disposing of same from site.
B30: Subterranean water
B32: No information regarding subterranean water is available. The
B33: tenderer must acquaint himself of the presence and depth of
B34: subterranean water and allow therefor in his prices.
B36: Filling and layer work materials
B38: References such as "G1", "G2", etc and "C1", "C2", etc in
B39: descriptions of filling and layer work materials refer to
B40: corresponding references in the document "Guidelines for Road
B41: Construction Materials. TRH 14 : 1985" compiled by the
B42: Committee of State Road Authorities and the properties set out
B43: therein for each kind shall be applicable to the respective
B44: materials described hereinafter
B46: Testing
B48: Descriptions & prices for earth filling, compaction, etc. are
B49: deemed to include for all necessary density and other testing
B50: required in accordance with the SABS 1200 series and
B51: Engineer's specifications
B53: EXCAVATION, FILLING, ETC. OTHER THAN BULK
B55: Excavation in earth not exceeding 2m deep
A57: 1 | B57: Holes | M57: m3 | O57: 16
A59: 2 | B59: Trenches | M59: m3 | O59: 2
A61: 3 | B61: Trenches | M61: m3 | O61: 11
A63: 4 | B63: Reduced levels | M63: m3 | O63: 18
B65: Extra over trench and hole excavations in earth for
B66: excavation in
A68: 5 | B68: Soft rock | M68: m3 | O68: 5
A70: 6 | B70: Hard rock | M70: m3 | O70: 10
A73: BILL No. 3
B74: Bill No. 3 EARTHWORKS carried to collection
A76: CONTRACT NUMBER: | C76: =C1 -> CONSTRUCTION OF A NEW LAPA AND THE REFURBISHMENT OF GATE HOUSE AND ABLUTIONS, EXTERNAL AREAS AND THE INSPECTION AND WORKS TO EXISTING AND NEW SERVICES AT THE MOKOPANE BIODIVERSITY CONSERVATION CENTRE | S76: Bill
A77: =A2 -> G540/2024 | S77: =S2 -> 3
A78: ITEM | B78: PAYMENT | C78: DESCRIPTION | Q78: RATE
A79: NO | B79: REFERS | M79: UNIT | O79: QUANTITY | S79: AMOUNT
B80: TO
B82: Extra over all excavations for carting away
A84: 7 | B84: Surplus material from excavations and/or stock piles on site to a | M84: m3 | O84: 150
B85: dumping site to be located by the contractor
B87: Risk of collapse of excavations
A89: 8 | B89: Sides of trench and hole excavations not exceeding 1,5m deep | M89: m2 | O89: 10
B91: Keeping excavations free of water
A93: 9 | B93: Keeping excavations free of all water other than subterranean | M93: Item | O93: 1
B94: water
B96: Selected earth filling obtained from the excavations
B97: and/or prescribed stock piles on site (compacted to
B98: 98% MDD
A100: 10 | B100: Backfilling to trenches, holes, etc. | M100: m3 | O100: 50
B102: Earth filling supplied by the contractor of G5 quality
B103: material in layers of 150mm thick compacted to
B104: 95% MDD
A106: 11 | B106: Under floors, pavings, etc. | M106: m3 | O106: 23
B108: Compaction of Surfaces
A110: 12 | B110: Compaction of ground surface under floors etc. including | M110: m2 | O110: 337
B111: scarifying for a depth of 150mm, breaking down oversize
B112: material, adding suitable material where necessary and
B113: compacting to 93% MDD
A115: 13 | B115: Compaction of ground surface in trenches, holes etc. including | M115: m2 | O115: 53
B116: scarifying for a depth of 150mm, breaking down oversize
B117: material, adding suitable material where necessary and
B118: compacting to 93% MDD
B120: Prescribed density tests on filling
A122: 14 | B122: Modified MDD test | M122: No | O122: 3
B124: SOIL POISONING
B126: Weedkiller (active ingredients metalaclor 102,8 g/l,
B127: terbitilasien 248,6 g/l and atrasien 248,6 g/l) mixed in the
B128: proportion of 100 ml weedkiller to 100 l water and applied
B129: at a rate of 10 l/m×½
B131: Soil insecticide in accordance with SANS 5859
B133: Approved brand of anti-termite soil poison & weedkiller is
B134: to be applied by a Registered Company and guaranteed
B135: for ten years
A137: 15 | B137: Under floors, paving, etc. including forming and poisoning | M137: m2 | O137: 180
B138: shallow furrows against foundation walls etc., filling in furrows
B139: and ramming
A141: 16 | B141: To bottoms and sides of trenches, holes, raft foundations etc. | M141: m2 | O141: 377
A149: =A73 -> BILL No. 3
B150: Bill No. 3 EARTHWORKS carried to Summary
A152: CONTRACT NUMBER: | C152: =C1 -> CONSTRUCTION OF A NEW LAPA AND THE REFURBISHMENT OF GATE HOUSE AND ABLUTIONS, EXTERNAL AREAS AND THE INSPECTION AND WORKS TO EXISTING AND NEW SERVICES AT THE MOKOPANE BIODIVERSITY CONSERVATION CENTRE | S152: Bill
A153: =A2 -> G540/2024 | S153: =S2 -> 3
A154: ITEM | B154: PAYMENT | C154: DESCRIPTION | Q154: RATE
A155: NO | B155: REFERS | M155: UNIT | O155: QUANTITY | S155: AMOUNT
B156: TO
B158: =B9 -> EARTHWORKS
B160: COLLECTION
B162: Total Brought Forward from Page No. | M162: 137
M164: =M162+1 -> 138
A228: =A149 -> BILL No. 3
B229: Bill No. 3 EARTHWORKS carried to Summary

Sheet Bill 4-Concrete
A1: CONTRACT NUMBER: | C1: ='Bill 1-P&G'!C1 -> CONSTRUCTION OF A NEW LAPA AND THE REFURBISHMENT OF GATE HOUSE AND ABLUTIONS, EXTERNAL AREAS AND THE INSPECTION AND WORKS TO EXISTING AND NEW SERVICES AT THE MOKOPANE BIODIVERSITY CONSERVATION CENTRE | S1: Bill
A2: ='Bill 1-P&G'!A2 -> G540/2024 | S2: 4
A3: Item | B3: DESCRIPTION | Q3: RATE
A4: No. | M4: UNIT | O4: QUANTITY | S4: AMOUNT
B7: BILL NO. 4
B9: CONCRETE, FORMWORK AND REINFORCEMENT
B11: SUPPLEMENTARY PREAMBLES
B13: General
B15: All concrete, formwork and reinforcement to be done according to
B16: SABS 1200G.
B18: Components cast against excavated surfaces have not been
B19: measured or described separately and the Contractor is to ensure
B20: adequate allowance for casting against excavated surfaces are
B21: made within the relevant items.
B23: Cost of Tests
B25: The costs of making, storing and testing of concrete test cubes
B26: as required under clause 7 "Tests" of SABS 1200 G shall include
B27: the cost of providing cube moulds necessary for the purpose, for
B28: testing costs and for submitting reports on the tests to the
B29: Representative/Agent. The testing shall be undertaken by an
B30: independent firm or institution nominated by the contractor to the
B31: approval of the Representative/Agent. (Test cubes are measured
B32: separately)
B34: Formwork
B36: All smooth formwork to be in accordance with SABS 1200G -
B37: 5.2.1b. Tolerance to concrete surfaces to have a degree of
B38: Accuracy II in accordance with SABS 1200 G - 6.1.1b.
B40: Descriptions of formwork shall be deemed to include use and waste
B41: only (except where described as "left in" or "permanent"), for fitting
B42: together in the required forms, wedging, plumbing and fixing to true
B43: angles and surfaces as necessary to ensure easy release during
B44: stripping and for re-conditioning as necessary before re-use.
B46: The vertical strutting shall be carried down to such construction
B47: as is sufficiently strong to afford the required support without
B48: damage and shall remain in position until the newly constructed
B49: work is able to support itself.
B51: Formwork to soffits of solid slabs, etc. shall be deemed to be to
B52: slabs not exceeding 250mm thick unless otherwise described.
B54: Formwork to sides of bases, ground beams, etc will only be
B55: measured where it is prescribed by the Representative/Agent, for
B56: design reasons. Formwork necessitated by irregularity or collapse
B57: of excavated faces will not be measured and the cost thereof shall
B58: be deemed to be included in the allowance for taking the risk of
B59: collapse of the sides of the excavations, provision for which is
B60: made in "Earthworks".
B62: A 13mm x 13mm chamfer shall be provided on all visible corners for
B63: off-shutter concrete in collaboration with the Principal Agent.
B64: Chamfers may only be formed with rigid type material.
B66: Where required by the Principal Agent or his representative,
B67: vibration of concrete shall be included in the rates.
A73: BILL No. 4
B74: Bill No. 4 CONCRETE, FORMWORK AND REINFORCEMENT carried to collection
A76: CONTRACT NUMBER: | C76: =C1 -> CONSTRUCTION OF A NEW LAPA AND THE REFURBISHMENT OF GATE HOUSE AND ABLUTIONS, EXTERNAL AREAS AND THE INSPECTION AND WORKS TO EXISTING AND NEW SERVICES AT THE MOKOPANE BIODIVERSITY CONSERVATION CENTRE | S76: Bill
A77: =A2 -> G540/2024 | S77: =S2 -> 4
A78: ITEM | B78: PAYMENT | C78: DESCRIPTION | Q78: RATE
A79: NO | B79: REFERS | M79: UNIT | O79: QUANTITY | S79: AMOUNT
B80: TO
B82: CONCRETE CAST AGAINST EXCAVATED SURFACES
B84: 15MPa/20mm Concrete
A86: 1 | B86: Surface blinding under footings and bases | M86: m3 | O86: 5
B88: Concrete 30 MPa/19mm
A90: 2 | B90: Aprons | M90: m3 | O90: 18
B92: REINFORCED CONCRETE CAST AGAINST EXCAVATED
B93: SURFACES
B95: Concrete 30 MPa/19mm
A97: 3 | B97: Raft foundation on waterproofing | M97: m3 | O97: 40
A99: 4 | B99: Bases | M99: m3 | O99: 20
A101: 5 | B101: Strip footings | M101: m3 | O101: 2
A103: 6 | B103: Stub columns | M103: m3 | O103: 2
A105: 7 | B105: Ramps | M105: m3 | O105: 1
B107: Concrete test cubes
A109: 8 | B109: Making and testing , set of three 150 x 150 x 150mm concrete | M109: No | O109: 2
B110: strength test cubes
A112: 9 | B112: Surface bed slabs | M112: m2 | O112: 342
A114: 10 | B114: Ramps | M114: m2 | O114: 5
B116: Wire brushing of concrete aprons to expose aggregate
A118: 11 | B118: Wiring brushing to aprons | M118: m2 | O118: 180
B120: 25MPa non shrink grout
A122: 12 | B122: Bedding approximately 10mm thick under 400 x 270mm base plate | M122: No | O122: 16
B123: including chamfered edges all round
B125: ROUGH FORMWORK (DEGREE OF ACCURACY II)
B127: Rough formwork to sides
A129: 13 | B129: Edges, risers, ends, reveals,etc. not exceeding 300mm high or wide | M129: m | O129: 217
B131: Rough formwork to sides
A133: 14 | B133: Sides of stub columns | M133: m2 | O133: 12
B135: MOVEMENT JOINTS ETC.
B137: 10mm Expansion joints formed of bitumen impregnated
B138: soft board
A140: 15 | B140: Between vertical concrete and brick surfaces not exceeding 300 mm | M140: m | O140: 65
B141: high or wide
A143: 16 | B143: Ditto but in walls vertically where cracks have occured | M143: m | O143: 4
B145: Isolation joint between concrete and brick surfaces with 10mm
B146: lightweight, cross-linked, closed cell, expanded Polyethylene
B147: joint former with hinged temporary blocking piece including
B148: sealing with approved sealer
A150: 17 | B150: Joints not exceeding 300mmm wide | M150: m | O150: 16
A152: =A73 -> BILL No. 4
B153: =B74 -> Bill No. 4 CONCRETE, FORMWORK AND REINFORCEMENT carried to collection
A155: CONTRACT NUMBER: | C155: =C76 -> CONSTRUCTION OF A NEW LAPA AND THE REFURBISHMENT OF GATE HOUSE AND ABLUTIONS, EXTERNAL AREAS AND THE INSPECTION AND WORKS TO EXISTING AND NEW SERVICES AT THE MOKOPANE BIODIVERSITY CONSERVATION CENTRE | S155: Bill
A156: =A77 -> G540/2024 | S156: =S77 -> 4
A157: ITEM | B157: PAYMENT | C157: DESCRIPTION | Q157: RATE
A158: NO | B158: REFERS | M158: UNIT | O158: QUANTITY | S158: AMOUNT
B159: TO
A161: 18 | B161: Ditto but placed vertically and sealed both sides | M161: m | O161: 180
A163: 19 | B163: Saw cut joints
A165: 20 | B165: 45mm Deep x 3mm wide saw cut joints in top of concrete | M165: m | O165: 52
B167: REINFORCEMENT
B169: Provision for high tensile steel reinforcement
A171: 22 | B171: Varying diameters in bases and structural concrete work | M171: t | O171: 4
B173: Mesh reinforcement
A175: 23 | B175: Mesh reinforcement 395 laid in slabs with 300mm wide side and | M175: m2 | O175: 340
B176: end laps (measured net)
A231: =A152 -> BILL No. 4
B232: Bill No. 4 CONCRETE, FORMWORK AND REINFORCEMENT to Summary
A234: CONTRACT NUMBER: | C234: =C1 -> CONSTRUCTION OF A NEW LAPA AND THE REFURBISHMENT OF GATE HOUSE AND ABLUTIONS, EXTERNAL AREAS AND THE INSPECTION AND WORKS TO EXISTING AND NEW SERVICES AT THE MOKOPANE BIODIVERSITY CONSERVATION CENTRE | S234: Bill
A235: =A2 -> G540/2024 | S235: =S2 -> 4
A236: ITEM | B236: PAYMENT | C236: DESCRIPTION | Q236: RATE
A237: NO | B237: REFERS | M237: UNIT | O237: QUANTITY | S237: AMOUNT
B238: TO
B240: =B9 -> CONCRETE, FORMWORK AND REINFORCEMENT
B242: COLLECTION
B244: Total Brought Forward from Page No. | M244: 140
M246: =M244+1 -> 141
M248: =M246+1 -> 142
A305: =A231 -> BILL No. 4
B306: Bill No. 4 CONCRETE, FORMWORK AND REINFORCEMENT carried to Summary

Sheet Bill 5-Masonry
A1: CONTRACT NUMBER: | C1: ='Bill 1-P&G'!C1 -> CONSTRUCTION OF A NEW LAPA AND THE REFURBISHMENT OF GATE HOUSE AND ABLUTIONS, EXTERNAL AREAS AND THE INSPECTION AND WORKS TO EXISTING AND NEW SERVICES AT THE MOKOPANE BIODIVERSITY CONSERVATION CENTRE | S1: Bill
A2: ='Bill 1-P&G'!A2 -> G540/2024 | S2: 5
A3: Item | B3: DESCRIPTION | Q3: RATE
A4: No. | M4: UNIT | O4: QUANTITY | S4: AMOUNT
B7: BILL NO. 5
B9: MASONRY
B11: SUPPLEMENTARY PREAMBLES
B13: General
B15: All masonry units shall comply with SANS 227:2007 and
B16: SANS 1 575:2007
B18: Brickwork shall be in accordance with SANS 0164.
B20: Minimum crushing strength of all load bearing bricks shall be
B21: 14MPa. The nominal compressive strength for face bricks shall be
B22: not less than 17MPa
B24: Class 1 Mortar mix
B26: Sizes in descriptions
B28: Where sizes in descriptions are given in brick units, "one brick"
B29: shall represent the length and "half brick" the width of a brick.
B31: Wall ties
B33: Descriptions of solid walls and cavity walls shall be deemed to
B34: include metal wall ties complying with SABS 28 and of the butterfly
B35: or of the modified PWD type, of the required length with each end
B36: built at least 75mm deep into brickwork, spaced at not more than
B37: 1m centres alternatively to every third course of brickwork.
B39: Descriptions of solid walls (except if built in English bond) and
B40: cavity walls shall be deemed to include metal wall ties complying
B41: with SABS 28 and of the butterfly or of the modified PWD type, of
B42: the required length with each end built at least 75mm deep into
B43: brickwork, spaced at not more than 1m centres alternatively to
B44: every third course of brickwork.
B46: Face bricks
B48: Bricks shall be ordered timeously to obtain uniformity in size
B49: and colour.
B51: Excessive suction in clay bricks should be controlled by wetting the
B52: bricks before laying. Corners and other advanced work shall be
B53: raked back and not raised above the general level of the remaining
B54: masonry work by more than one metre at any one lift.
B56: Face bricks to be kept free from mortar droppings as the work
B57: continues.
B59: Reinforcing and brickforce to face brick lintels to have steel hangers
B60: to be built into brickwork above header course with R8 steel rod
B61: reinforcing for three brick courses above the lintel. All joints in the
B62: header course shall be solidly filled with mortar.
B64: Pointing
B66: Descriptions of recessed pointing to fair face brickwork and face
B67: brickwork shall be deemed to include square recessed, hollow
B68: recessed, weathered pointing, etc.
B70: Strutting/shoring of brickwork
B72: All cost for strutting/shoring of new brickwork while compacting
B73: under the ground floor slab shall be for the account of the contractor.
A75: BILL No. 5
B76: Bill No. 5 MASONRY carried to collection
A78: CONTRACT NUMBER: | C78: =C1 -> CONSTRUCTION OF A NEW LAPA AND THE REFURBISHMENT OF GATE HOUSE AND ABLUTIONS, EXTERNAL AREAS AND THE INSPECTION AND WORKS TO EXISTING AND NEW SERVICES AT THE MOKOPANE BIODIVERSITY CONSERVATION CENTRE | S78: Bill
A79: =A2 -> G540/2024 | S79: =S2 -> 5
A80: ITEM | B80: PAYMENT | C80: DESCRIPTION | Q80: RATE
A81: NO | B81: REFERS | M81: UNIT | O81: QUANTITY | S81: AMOUNT
B82: TO
B84: FOUNDATIONS
B86: Contractor shall support all foundation brickwork while
B87: compacting fill material under floors
B89: Brickwork of NFX bricks in class II mortar
A91: 1 | B91: One brick wall in foundations including brick reinforcement every | M91: m2 | O91: 24
B92: course
B94: SUPERSTRUCTURE
B96: Brickwork of NFP bricks in class II mortar
A98: 2 | B98: One brick walls including brick reinforcement every fourth course | M98: m2 | O98: 208
B99: and hoop iron tie fixings to columns/brickwork as directed
A101: 3 | B101: One and a half brick walls including brick reinforcement every | M101: m2 | O101: 16
B102: fourth course and hoop iron tie fixings to columns/brickwork as
B103: directed
A105: 4 | B105: One brick wall in beam filling | M105: m | O105: 46
A107: 5 | B107: 460 x 460mm Brick piers with a 110 x 110mm 30mpa reinforced | M107: No | O107: 14
B108: concrete cavity infill
A110: 6 | B110: 460 x 460mm Brick piers | M110: No | O110: 3
A112: 7 | B112: Extra over one brick walls for sloping, cutting and shaping | M112: m2 | O112: 9
B113: brickwork as per architects details and drawings to bottom
B114: section of chimney structure
B116: Prestressed fabricated lintels
A118: 8 | B118: 100 x 70mm Lintels in lengths not exceeding 3m long | M118: m | O118: 8
B120: FACE BRICKWORK
B122: External facebrick (PC R6000/1000 delivered to site, excluding
B123: (VAT) pointed with square recessed horizontal and vertical
B124: joints
A126: 9 | B126: Extra over for face brickwork | M126: m2 | O126: 145
A128: 10 | B128: Brick-on-edge header course lintel 106mm wide pointed on one | M128: m | O128: 6
B129: face and on soffit to match face brick of external walls, all as per
B130: Architects detail and specification
A132: 11 | B132: Brick-on-edge header course sloping window sill, approximately | M132: m | O132: 6
B133: 222mm wide pointed on one face and top, all as per Architects
B134: detail and specification
B136: STONEWORK
B138: WALL CLADDING
B140: Natural stone wall cladding to match existing - Allow for pricing
B141: of fixing on and labour only to cart and install - Material to be
B142: sourced locally from site and supplied free of charge to
B143: contractor. Refer to architects finishing schedules. Walls to
B144: match existing pattern and jointing detail
A146: 12 | B146: Extra over brick wall for cladding | M146: m2 | O146: 105
A153: =A75 -> BILL No. 5
B154: Bill No. 5 MASONRY carried to Collection
A156: CONTRACT NUMBER: | C156: =C78 -> CONSTRUCTION OF A NEW LAPA AND THE REFURBISHMENT OF GATE HOUSE AND ABLUTIONS, EXTERNAL AREAS AND THE INSPECTION AND WORKS TO EXISTING AND NEW SERVICES AT THE MOKOPANE BIODIVERSITY CONSERVATION CENTRE | S156: Bill
A157: =A79 -> G540/2024 | S157: =S2 -> 5
A158: ITEM | B158: PAYMENT | C158: DESCRIPTION | Q158: RATE
A159: NO | B159: REFERS | M159: UNIT | O159: QUANTITY | S159: AMOUNT
B160: TO
B162: =B9 -> MASONRY
B164: COLLECTION
B166: Total Brought Forward from Page No. | M166: 144
M168: =M166+1 -> 145
A226: =A153 -> BILL No. 5
B227: Bill No. 5 MASONRY carried to Summary

Sheet Bill 6-Waterproofing
A1: CONTRACT NUMBER: | C1: ='Bill 1-P&G'!C1 -> CONSTRUCTION OF A NEW LAPA AND THE REFURBISHMENT OF GATE HOUSE AND ABLUTIONS, EXTERNAL AREAS AND THE INSPECTION AND WORKS TO EXISTING AND NEW SERVICES AT THE MOKOPANE BIODIVERSITY CONSERVATION CENTRE | S1: Bill
A2: ='Bill 1-P&G'!A2 -> G540/2024 | S2: 6
A3: Item | B3: DESCRIPTION | Q3: RATE
A4: No. | M4: UNIT | O4: QUANTITY | S4: AMOUNT
B7: =A79 -> BILL No. 6
B9: WATERPROOFING
B11: DAMP-PROOFING OF WALLS AND FLOORS
B13: Horizontal & vertical damp-proof course to be of black
B14: polyethylene sheeting complying with SANS specifications
B15: 952 type B having embossed surface 0.38mm thick
B16: (250 microns) & manufactured in widths of less than
B17: 1000mm. Lapped minimum 150mm at all joints, & ensure
B18: similarly lapped over green under-floor damp proof
B19: membrane sufficiently
A21: 1 | B21: In walls, cills etc (measured nett) | M21: m2 | O21: 17
B23: One layer of 250 micron green Polyethylene sheeting to
B24: comply with SANS 952 Type C with minimum 150mm lap to
B25: DPM including sealing laps with approved tape
A27: 2 | B27: 250 micron under surface beds, ramps etc. | M27: m2 | O27: 307
A29: 3 | B29: Under apron slabs | M29: m2 | O29: 180
B31: PROTECTIVE WATERPROOFING TO WALLS
B33: Prepare and apply two coats protective bitumen
B34: waterproofing to brick walls
A36: 4 | B36: Vertically to walls | M36: m2 | O36: 105
B38: JOINT SEALANTS ETC
B40: Clear silicone sealing compound
A42: 5 | B42: Point between steel windows and door frames and face of brickwork | M42: m | O42: 27
B44: Two part polysulphide sealing compound including backing
B45: cord, bond breaker, primer, etc.
A47: 6 | B47: 3mm Wide x 10mm deep in saw cut joint | M47: m | O47: 52
A49: 7 | B49: 12mm Wide x 50mm deep in walls where cracks have occured | M49: m | O49: 4
A51: 8 | B51: 20 x 20mm Deep in isolation joint | M51: m | O51: 16
A53: 9 | B53: 5mm Wide x 5mm Deep in joints between tiles and sanitary fittings | M53: m | O53: 1
A55: 10 | B55: 20mm Wide x 20mm deep in junctions between concrete soffits and | M55: m | O55: 65
B56: brickwalls
B58: BUDGETARY ALLOWANCES
B60: The following Budgetary Allowances are for work to be e
B61: xecuted by the Sub-Contractor or specialist suppliers and
B62: priced at Bill rates or rates to be agreed and to be used as
B63: directed by the Principal Agent and to be deducted in whole
B64: or in part if not required
A66: 11 | B66: Provide the sum of R15 000.00 (Fifteen Thousand) for | M66: Item | Q66: R15,000.00 | S66: =Q66 -> R15,000.00
B67: waterproofing requirements to existing buildings where leaking
B68: and water issues have arised
A79: BILL No. 6
B80: Bill No. 6 WATERPROOFING carried to collection

Sheet Bill 7-Roof
A1: CONTRACT NUMBER: | C1: ='Bill 1-P&G'!C1 -> CONSTRUCTION OF A NEW LAPA AND THE REFURBISHMENT OF GATE HOUSE AND ABLUTIONS, EXTERNAL AREAS AND THE INSPECTION AND WORKS TO EXISTING AND NEW SERVICES AT THE MOKOPANE BIODIVERSITY CONSERVATION CENTRE | S1: Bill
A2: ='Bill 1-P&G'!A2 -> G540/2024 | S2: 7
A3: Item | B3: DESCRIPTION
A4: No. | M4: UNIT | O4: QUANTITY
B7: BILL NO. 7
B9: ROOF COVERINGS
B11: SUPPLEMENTARY PREAMBLES
B13: Harvey roof tiles
B15: Contractor to note that Harvey roof tiles to be installed by a certified
B16: and accredited Harvey roof tile installer/contractor
B18: ROOF SHEETING
B20: Roofing sheeting shall be Kliplok 404 (or similar and
B21: approved) concealed fix profile roll-formed in continuous
B22: lengths from certified steel chromadek Z200 0.58mm
B23: complying with ISQ 550 (3T) and fixed to steel / timber
B24: purlins/girts using KL65 clips (aluminium KL65 clips to be
B25: used in conjunction with aluminium sheeting) and class 3
B26: fasteners, in strict accordance with manufacturer"€™s
B27: specifications by an Approved Contractor. A written and
B28: approved five year guarantee of water-tightness shall be
B29: issued after approval of roofs by the manufacturer.
A31: 1 | B31: Roof covering with pitch not exceeding 25 degrees | M31: m2 | O31: 444
B33: TILES
B35: Harvey Thatch Roof Tiles or Similar and approved with a
B36: galvanised substrate coated with a natural stone finish on
B37: 38 x 38mm SA Pine batten trusses @ 360 C/C on timber roof
B38: structure (roof structure and trusses elsewhere measured)
B39: nailed on an underlay of 150 micron polyethylene sheeting
B40: or equal and approved with 150mm sealed laps as per
B41: manufacturers instructions
A43: 2 | B43: Roof coverings with pitches exceeding 25 degrees but not exceeding | M43: m2 | O43: 732
B44: 50 degrees
A46: 3 | B46: Circular cutting | M46: m | O46: 10
A48: 4 | B48: Ridge tiles to match roofing tiles bedded and pointed in 1:3 cement | M48: m | O48: 46
B49: mortar tinted to match tile colour
A51: 5 | B51: Hip tiles to match roofing tiles bedded and pointed in 1:3 cement | M51: m | O51: 41
B52: mortar tinted to match tile colour including 200mm wide strip of
B53: 375 micron embossed damp proof
B55: Flashings shall be to the manufacturer's standards or similar
B56: approved Galvanized steel Z200 0.58mm with a patent finish
B57: to one side with a Pebble Grey backing coat and fixed to the
B58: sheeting with S10 brackets or, sliding brackets at apex
B59: where roof sheets are 30m or longer, to obviate any direct
B60: fixing perforations. Prior to flashings being fixed, all troughs
B61: at the apex shall be stop-ended to the full depth of the sheet
B62: in order to prevent any penetration of wind driven water.
B63: The trough shall be lipped at the eaves end to form a drip.
B64: Transverse flashing flanges shall be form a drip.
B65: Transverse flashing flanges shall be notched to the sheet
B66: profile where necessary
A68: 6 | B68: Headwall/Counter Flash 375mm girth 3 times bent and notched on | M68: m | O68: 141
B69: site to suit roof profile (on sloping roof)
A71: 7 | B71: Sidewall Flash 408mm girth 2 times bent (on sloping side) | M71: m | O71: 4
A74: BILL No. 7
B75: Bill No. 7 ROOF COVERINGS carried to collection
A77: CONTRACT NUMBER: | C77: =C1 -> CONSTRUCTION OF A NEW LAPA AND THE REFURBISHMENT OF GATE HOUSE AND ABLUTIONS, EXTERNAL AREAS AND THE INSPECTION AND WORKS TO EXISTING AND NEW SERVICES AT THE MOKOPANE BIODIVERSITY CONSERVATION CENTRE | S77: Bill
A78: =A2 -> G540/2024 | S78: =S2 -> 7
A79: ITEM | B79: PAYMENT | C79: DESCRIPTION | Q79: RATE
A80: NO | B80: REFERS | M80: UNIT | O80: QUANTITY | S80: AMOUNT
B81: TO
A83: 8 | B83: Serrated top end closer 700mm girth | M83: m | O83: 141
B85: ROOF AND WALL INSULATION
B87: 100mm Isover Saint-Gobain or similar and approved
B88: factorylite non-combustible flexible glass wool insulation
B89: with metalized foil backing on underside
A91: 9 | B91: Insulation laid taut over rafters (at approximately 500mm centres) | M91: m2 | O91: 1176
B92: and fixed concurrent with covering/tiling battens, purlins, etc,
B93: including taped laps
A153: =A74 -> BILL No. 7
B154: Bill No. 7 Roof carried to Collection
A156: CONTRACT NUMBER: | C156: =C1 -> CONSTRUCTION OF A NEW LAPA AND THE REFURBISHMENT OF GATE HOUSE AND ABLUTIONS, EXTERNAL AREAS AND THE INSPECTION AND WORKS TO EXISTING AND NEW SERVICES AT THE MOKOPANE BIODIVERSITY CONSERVATION CENTRE | S156: Bill
A157: =A78 -> G540/2024 | S157: =S2 -> 7
A158: ITEM | B158: PAYMENT | C158: DESCRIPTION | Q158: RATE
A159: NO | B159: REFERS | M159: UNIT | O159: QUANTITY | S159: AMOUNT
B160: TO
B162: =B9 -> ROOF COVERINGS
B164: COLLECTION
B166: Total Brought Forward from Page No. | M166: 148
M168: =M166+1 -> 149
A231: =A153 -> BILL No. 7
B232: Bill No. 7 ROOF COVERINGS carried to Summary

Sheet Bill 8-Capentry
A1: CONTRACT NUMBER: | C1: ='Bill 1-P&G'!C1 -> CONSTRUCTION OF A NEW LAPA AND THE REFURBISHMENT OF GATE HOUSE AND ABLUTIONS, EXTERNAL AREAS AND THE INSPECTION AND WORKS TO EXISTING AND NEW SERVICES AT THE MOKOPANE BIODIVERSITY CONSERVATION CENTRE | S1: Bill
A2: ='Bill 1-P&G'!A2 -> G540/2024 | S2: 8
A3: Item | B3: DESCRIPTION | Q3: RATE
A4: No. | M4: UNIT | O4: QUANTITY | S4: AMOUNT
B7: BILL NO. 8
B9: CARPENTRY & JOINERY
B11: SUPPLEMENTARY PREAMBLES
B13: Particle board
B15: Particle board shall comply with the following specifications:
B17: a) SABS 1300 Particle board: exterior and flooring type
B19: b) SABS 1301 Particle board: interior type
B21: Joinery
B23: Descriptions of frames shall be deemed to include frames,
B24: transomes, mullions, rails, etc.
B26: Descriptions of hardwood joinery shall be deemed to include
B27: pelleting of bolt holes.
B29: Fixing
B31: Items described as "nailed" shall be deemed to be fixed with
B32: hardened steel nails or shot pins to brickwork or concrete.
B34: Cappings
B36: All timber beams, columns should include for metal capping's to
B37: prevent any splitting of timber.
B39: Treatment of cut surfaces
B41: The contractor's rates is to allow for treating all cut surfaces of
B42: timber/wooden components with approved enseal.
B44: TIMBER WORK, ETC.
B46: Timber columns to be placed in bases, and concrete cast/poured
B47: around it in bases as per engineers specifications
B48: (Concrete bases measured elsewhere)
B50: SA Pine or similar and approved columns, beams and laths
B51: bolted in place including bolts, plates, connectors, etc. Timber
B52: columns to be treated in three coats Plascon FDR Woodcare
B53: preservative or similar and approved
A55: 1 | B55: 159mm Diameter columns | M55: m | O55: 10
B57: DOORS, ETC
B59: Contractor to allow for undercutting of internal doors when pricing
B61: TDM or similar and approved Semi solid door with hardwood
B62: edges all round and masonite finish to both sides to
B63: Architects specification
A65: 2 | B65: Single door, size approximately 815 x 2032mm | M65: No | O65: 2
B67: EAVES , VERGES , ETC
B69: Fascia and barge boards
A71: 3 | B71: 10 x 225mm Fascias boards including galvanised steel H-profile | M71: m | O71: 141
B72: jointing strips
A74: 4 | B74: 10 x 225mm Barge boards including galvanised steel H-profile | M74: m | O74: 19
B75: jointing strips
A78: BILL No. 8
B79: Bill No. 8 CARPENTRY & JOINERY carried to collection
A81: CONTRACT NUMBER: | C81: =C1 -> CONSTRUCTION OF A NEW LAPA AND THE REFURBISHMENT OF GATE HOUSE AND ABLUTIONS, EXTERNAL AREAS AND THE INSPECTION AND WORKS TO EXISTING AND NEW SERVICES AT THE MOKOPANE BIODIVERSITY CONSERVATION CENTRE | S81: Bill
A82: =A2 -> G540/2024 | S82: =S2 -> 8
A83: ITEM | B83: PAYMENT | C83: DESCRIPTION | Q83: RATE
A84: NO | B84: REFERS | M84: UNIT | O84: QUANTITY | S84: AMOUNT
B85: TO
B87: SKIRTINGS
B89: Hardwood
A91: 5 | B91: 100 x 16mm Skirting with 5mm rounded top corner screwed and | M91: m | O91: 32
B92: plugged
B95: JOINERY
B97: COUNTER TOPS
A99: 6 | B99: 32mm Thick PG Bison Formica or similar and approved top with | M99: m | O99: 14
B100: 200mm deep x 32mm thick Formica down stand at front and on
B101: exposed side, with exposed side edges and a preformed bullnose
B102: edge , approximately 600mm wide including silicon sealant, etc.
B103: and polishing all exposed edges with 45 degree mitred joint with
B104: 2-3mm bevel on surface edge complete. Tops and down stands to
B105: be fixed to 25 x 50mm mild steel 2.5mm thick hollow section
B106: frame, finished in one coat red oxide factory supplied metal
B107: primer paint with one coat Plascon or similar and approved merit
B108: undercoat and two coats enamel paint (colour : black), at maximum
B109: 900mm centres with lugs and fixed to walls with chemical anchor
B110: bolts at suitable centres using dabs of 100% clear silicone
B111: adhesive, with all joints filled with matching polyester resin glue,
B112: all in accordance with manufacturer's and architect's specifications
A114: 7 | B114: Extra over item for cutting out openings in vanity tops not exceeding | M114: No | O114: 1
B115: 50mm diameter
A157: =A78 -> BILL No. 8
B158: Bill No. 8 CARPENTRY & JOINERY carried to collection
A160: CONTRACT NUMBER: | C160: =C1 -> CONSTRUCTION OF A NEW LAPA AND THE REFURBISHMENT OF GATE HOUSE AND ABLUTIONS, EXTERNAL AREAS AND THE INSPECTION AND WORKS TO EXISTING AND NEW SERVICES AT THE MOKOPANE BIODIVERSITY CONSERVATION CENTRE | S160: Bill
A161: =A2 -> G540/2024 | S161: =S2 -> 8
A162: ITEM | B162: PAYMENT | C162: DESCRIPTION | Q162: RATE
A163: NO | B163: REFERS | M163: UNIT | O163: QUANTITY | S163: AMOUNT
B164: TO
B166: =B9 -> CARPENTRY & JOINERY
B168: COLLECTION
B170: Total Brought Forward from Page No. | M170: 151
M172: =M170+1 -> 152
A235: =A157 -> BILL No. 8
B236: Bill No. 8 CARPENTRY & JOINERY carried to Collection

Sheet Bill 9-Ceilings
A1: CONTRACT NUMBER: | C1: ='Bill 1-P&G'!C1 -> CONSTRUCTION OF A NEW LAPA AND THE REFURBISHMENT OF GATE HOUSE AND ABLUTIONS, EXTERNAL AREAS AND THE INSPECTION AND WORKS TO EXISTING AND NEW SERVICES AT THE MOKOPANE BIODIVERSITY CONSERVATION CENTRE | S1: Bill
A2: ='Bill 1-P&G'!A2 -> G540/2024 | S2: 9
A3: Item | B3: DESCRIPTION | Q3: RATE
A4: No. | M4: UNIT | O4: QUANTITY | S4: AMOUNT
B7: BILL NO. 9
B9: CEILINGS
B11: SUPPLEMENTARY PREAMBLES
B13: THATCHED CEILING
B15: "Correx" Cape Reed or similar and approved ceiling
B16: boards 1220 x 2440 x 10mm in size nailed directly on roof
B17: timber members above using binding strips (timber roof
B18: measured separately), ensuring all nails/screws are driven
B19: all the way into binding strip as per architects and
B20: manufacturers specifications, treated in Micon coating
B21: Thatchsayf or similar and approved finish including
B22: all nails, strips connectors etc.
A24: 1 | B24: Thatched ceiling fixed to underside of roof structure | M24: m2 | O24: 381
B26: SUSPENDED CEILINGS
B28: 600 x 1200 x 9mm Thick Pelican or similar and approved
B29: Econolite foil backed ceiling tiles with vinyl face finish laid
B30: onto Pelican Econogrid pre-painted white exposed tee
B31: grid system including fire safety punch outs, with main
B32: tees suspended by means of 19 x 0.5mm GMS strap/2.5mm
B33: wire hangers at 1200mm centres as per manufacturers
B34: specifications
A36: 2 | B36: Ceilings suspended not exceeding 1m below concrete soffits/roof | M36: m2 | O36: 43
B37: structure
B39: Edge trim to flush plastered ceilings
A41: 3 | B41: Pelican system or similar and approved PS1 aluminium shadow line | M41: m | O41: 27
B42: ceiling trim fixed to walls
A75: BILL No. 9
B76: Bill No. 9 CEILING carried to summary

Sheet Bill 10-Iron Mongery
A1: CONTRACT NUMBER: | C1: ='Bill 1-P&G'!C1 -> CONSTRUCTION OF A NEW LAPA AND THE REFURBISHMENT OF GATE HOUSE AND ABLUTIONS, EXTERNAL AREAS AND THE INSPECTION AND WORKS TO EXISTING AND NEW SERVICES AT THE MOKOPANE BIODIVERSITY CONSERVATION CENTRE | S1: Bill
A2: ='Bill 1-P&G'!A2 -> G540/2024 | S2: 10
A3: Item | B3: DESCRIPTION | Q3: RATE
A4: No. | M4: UNIT | O4: QUANTITY | S4: AMOUNT
B7: BILL NO. 10
B9: IRONMONGERY
B11: SUPPLEMENTARY PREAMBLES
B13: Finishes to ironmongery
B15: Where applicable finishes to ironmongery are indicated by suffixes
B16: in accordance with the following list:
B17: SS Stainless Steel
B18: BS Satin bronze lacquered
B19: CH Chromium plated
B20: SC Satin chromium plated
B21: SE Silver enamelled
B22: GE Grey enamelled
B23: AS Anodised silver
B24: AB Anodised bronze
B25: AG Anodised gold
B26: ABL Anodised black
B27: PB Polished brass
B28: PL Polished and lacquered
B29: PT Epoxy coated
B30: SD Sanded
B32: Unless otherwise stated ironmongery is to be the manufacture's
B33: standard corrosion resistant ironmongery for the particular product
B34: ranges.
B36: Installed to Architects specification
B38: Surface finishes should be restricted to polished chrome or satin
B39: chrome on all approved ironmongery for external and internal doors "
B40: unless otherwise stated.
B42: LOCK SETS, HANDLES, CYLINDERS, FLUSH BOLTS ETC.
A44: 1 | B44: Union/Assa Abloy Sable lever door handles per pair (Code - AL65A63) | M44: No | O44: 2
B45: or similar and approved
A47: 2 | B47: Union/Assa Abloy morticed lock (Code - 23315) Euro cylinder sash lock | M47: No | O47: 2
B48: or similar and approved
A50: 3 | B50: Union/Assa Abloy (Code - 23315) Euro cylinder sash 2 x 18 | M50: No | O50: 2
B51: Euro profile double cylinder complete with three keys
B52: or similar and approved
A54: 4 | B54: 152 x 76mm modular backplate suitable for Euro profile cylinder | M54: No | O54: 2
B55: Lock or similar and approved
B57: SUNDRIES
A59: 5 | B59: Union/Assa Abloy Euro profile double cylinder complete | M59: No | O59: 2
B60: (Code - AL8730AS) floor mounted door stop to each door leaf
B61: or similar and approved
B63: BUDGETARY ALLOWANCES
B65: The following Budgetary Allowances are for work to be
B66: executed by the Main Contractor or specialist suppliers and
B67: priced at Bill rates or rates to be agreed.
A69: 6 | B69: Provide the sum of R30 000.00 (Thirty Thousand Rand) for the | M69: Item | Q69: R30,000.00 | S69: =Q69 -> R30,000.00
B70: supply, delivery and installation of general and fire signage
A76: BILL No. 10
B77: Bill No. 10 IRONMONGERY carried to summary

Sheet Bill 11-Metal
A1: CONTRACT NUMBER: | C1: ='Bill 1-P&G'!C1 -> CONSTRUCTION OF A NEW LAPA AND THE REFURBISHMENT OF GATE HOUSE AND ABLUTIONS, EXTERNAL AREAS AND THE INSPECTION AND WORKS TO EXISTING AND NEW SERVICES AT THE MOKOPANE BIODIVERSITY CONSERVATION CENTRE | S1: Bill
A2: ='Bill 1-P&G'!A2 -> G540/2024 | S2: 11
A3: Item | B3: DESCRIPTION | Q3: RATE
A4: No. | M4: UNIT | O4: QUANTITY | S4: AMOUNT
B7: BILL NO. 11
B9: METALWORK
B11: PRESSED STEEL DOOR FRAMES (SANS 1129)
B13: 1,2mm Mild steel double rebated single door frame
B14: suitable for 110mm/220mm walls. Door frame to be
B15: supplied complete with 1 pair hinges, lugs, strike plate
B16: and rubber buffers as supplied by the manufacturer.
A18: 1 | B18: Door frame for door size 815 x 2032mm with two 100mm steel | M18: No | O18: 2
B19: butts and slotted for lock strike
B21: MILD STEEL WINDOWS
B23: Standard profile steel windows with 4mm thick clear float
B24: glass in black neoprene gaskets with matching aluminium
B25: square beading plugged to brickwork, concrete, etc
A27: 2 | B27: Window overall size 1511 x 654mm high | M27: No | O27: 4
B29: BURGLAR BARS
B31: Burglar bars to windows consisting of frame of40mm x 10mm
B32: thick galvanised mild steel flat bar bolted to internal reveal of
B33: brick wall, with bars of 12mm Diameter mild steel round bar
B34: welded to flat bar frame at maximum 120mm centres All
B35: powder coated (colour to Architects specification)
A37: 3 | B37: Burglar bars for window size 1511 x 654mm high | M37: No | O37: 4
B39: BLINDS
B41: Note: The pricing of all blinds to include all necessary support work
B43: Canvas Corporation or sirmilar and approved frameless
B44: exterior quality UV resistant roller blinds fixed to purpose
B45: made steel supports above including all connections etc.
A47: 4 | B47: Blinds for opening size approximately 3660 x 2645mm high | M47: No | O47: 7
B49: BRAAI STRUCTURE
B51: 2 x Jet Master or equal and approved 1200 built in UNI mild
B52: steel braai structure with flue and mild steel rotating cowl
B53: including nickel-plated grill, charcoal tray, light fittings and
B54: slide-in and under reinforced door with handle and locking
B55: eyes
A57: 5 | B57: Braai unit | M57: No | O57: 2
B59: SUNDRIES
B61: Holding down bolts
A63: 6 | B63: M16 HVU chemical anchor bolts 400mm long including nuts and | M63: No | O63: 64
B64: washers
B66: BUDGETARY ALLOWANCES
B68: The following Budgetary Allowances are for work to be
B69: executed by the Main Contractor or specialist suppliers
B70: and priced at Bill rates or rates to be agreed.
A72: 7 | B72: Provide the sum of R30 000.00 (Thirty Thousand) for chimney | M72: Item | Q72: R30,000.00 | S72: =Q72 -> R30,000.00
B73: cowl and general items still to be specified etc.
A78: BILL No. 11
B79: Bill No. 11 METALWORK carried to Summary

Sheet Bill 12-Structural
A1: CONTRACT NUMBER: | C1: ='Bill 1-P&G'!C1 -> CONSTRUCTION OF A NEW LAPA AND THE REFURBISHMENT OF GATE HOUSE AND ABLUTIONS, EXTERNAL AREAS AND THE INSPECTION AND WORKS TO EXISTING AND NEW SERVICES AT THE MOKOPANE BIODIVERSITY CONSERVATION CENTRE | S1: Bill
A2: ='Bill 1-P&G'!A2 -> G540/2024 | S2: 12
A3: Item | B3: DESCRIPTION | Q3: RATE
A4: No. | M4: UNIT | O4: QUANTITY | S4: AMOUNT
B7: BILL NO. 12
B9: STRUCTURAL WORK
B11: SUPPLEMENTARY PREAMBLES
B13: 1. Shop drawings
B15: The contractor will be required to prepare shop details for the work
B16: which must be submitted to the Engineer for approval before
B17: fabrication is started. Approval of shop details by the Engineer
B18: will include the following:
B20: a) Examination of member sizes for consistency with design
B21: requirements,
B23: b) Examination of all connections designed and/or detailed by the
B24: fabricator, for adequacy of load trasference,
B26: c) Approval of leading dimensions which are taken to include such
B27: dimensions as may influence the design (eg, depth of trusses and
B28: girders) or which may grossly affect site programme (eg, truss
B29: spans and stanchion heights).
B31: Not withstanding any approval of these details, the contractor shall
B32: remain responsible for ensuring that the dimensions, details and
B33: workmanship result in the correct assembly of the work.
B35: 2. Material and workmanship
B37: The steelwork is to be fabricated from mild steel to SANS 1431
B38: Grade 350W. The whole of the fabrication and workmanship
B39: generally is to be in strict accordance with SANS 0162-1984 as
B40: amended. The material shall be of best quality throughout, free from
B41: loose rust or millscale, true to thickness and profile throughout and
B42: of the section and mass specified subject to a 2% tolerance for
B43: rolling margin. Consideration will be given to any detail variation
B44: which the contractor may wish to make with the view to the
B45: simplification of either fabrication, delivery or erection. Substitutions
B46: must be made at the contractor's own expense.
B48: The contractor shall provide Works Test Certificates where so
B49: required by the Engineer.
B51: 3. Testing
B53: The Engineer shall be at liberty to select test pieces from
B54: steelwork in the workshop or on the site and to have them
B55: tested. The expense of such tests are to be borne by the contractor
B56: if the steelwork does not comply with the standards laid down
B57: above.
B59: 4. Hold down bolts
B61: Holding down bolts and other fixing devices which are to be
B62: embedded in concrete must be supplied to the principal contractor
B63: on request together with the necessary information, identification
B64: and templates.
B66: 2mm Mild steel plate templates provided on a scale of one template
B67: for every five groups of bolts, suitably marked to ensure easy
B68: identification are to be supplied to the principal contractor.
B70: Any costs incurred by subsequent repositioning of bolts, etc.
B71: resulting from the contractor having failed to furnish adequate
B72: information, identification and templates will be for the contractor's
B73: account.
A78: BILL No. 12
B79: Bill No. 12 STRUCTURAL WORK carried to collection
A81: CONTRACT NUMBER: | C81: =C1 -> CONSTRUCTION OF A NEW LAPA AND THE REFURBISHMENT OF GATE HOUSE AND ABLUTIONS, EXTERNAL AREAS AND THE INSPECTION AND WORKS TO EXISTING AND NEW SERVICES AT THE MOKOPANE BIODIVERSITY CONSERVATION CENTRE | S81: Bill
A82: =A2 -> G540/2024 | S82: =S2 -> 12
A83: ITEM | B83: PAYMENT | C83: DESCRIPTION | Q83: RATE
A84: NO | B84: REFERS | M84: UNIT | O84: QUANTITY | S84: AMOUNT
B85: TO
B87: 5. Welding
B89: Welding shall be in accordance with SABS 044 "Welding:
B90: Parts I, II and III", E70XX
B92: Welding shall be carried out in a manner which will prevent any
B93: distortion of the weld or the parent section.
B95: All welds shall have adequate root fusion and shall be free from
B96: cracks, porosity or other irregularities and any undercutting shall
B97: be made good by the deposition of additional runs of weld metal.
B99: Any completed welds showing cracks, cavities or other efects shall
B100: be cut out and made good at the contractor's own expense.
B102: Mild steel electrodes shall comply with SABS 455 "Covered
B103: Electrodes for Manual Arc Welding of Mild Steel and Medium
B104: High Tensile Steel".
B106: 6. Bolts
B108: Bolts shall have well-formed heads forged from the solid. Nuts shall
B109: closely fit the bolts so that they can only just be turned by hand and
B110: at least one clear thread shall project beyond the nut when fully
B111: tightened. All bolts shall have one washer under the nuts and shall
B112: be so tightened that the threaded portion does not bear on the
B113: members connected.
B115: Where bolt heads or nuts bear upon bevelled surfaces they shall be
B116: provided with tapered washers of 2,3 mm mean thickness to provide
B117: a seating square with the axis of the bolt.
B119: 7. Friction grip bolts
B121: Connections specifying high strength friction grip bolts are to be in
B122: strict accordance with SABS 094 "Bolted Friction Grip Joints in .
B123: Structural Steelwork" and the bolts used are to be in accordance
B124: with BS 3139 Part 1 : 1959 "General Grade Bolts, High Strength
B125: Friction Grip Bolts for Structural Engineering"
B127: Notwithstanding the above, the following must be rigidly adhered to :
B129: a) Two-case hardened washers, one flat or bevelled under the head
B130: and the other flat or bevelled under the nut shall be used with each
B131: bolt.
B133: b) Contact surfaces shall not be painted and shall be thoroughly
B134: cleaned free of dirt, oil, loose scale, burrs and other defects which
B135: are liable to reduce friction resistnace between surfaces.
B137: c) At all times the correct torques shall be applied to the
B138: different sizes of bolts.
B140: 8. Erection
B142: The steelwork generally is to be fabricated in the contractor's works
B143: having due regard to transport and erection facilities. He must
B144: supply all erection tackle, temporary erection bracing, erect and
B145: plumb all steelwork and supply all steel wedges and tacks as
B146: required.
B148: Items may be detailed for delivery "piece small" or the contractor may
B149: prefabricate if he is satisfied that suitable arrangements for transport
B150: can be made.
B152: Connections are to be designed for the forces indicated on the
B153: drawings or to the maximum capacity of the members.
A159: =A78 -> BILL No. 12
B160: =B79 -> Bill No. 12 STRUCTURAL WORK carried to collection
A162: CONTRACT NUMBER: | C162: =C81 -> CONSTRUCTION OF A NEW LAPA AND THE REFURBISHMENT OF GATE HOUSE AND ABLUTIONS, EXTERNAL AREAS AND THE INSPECTION AND WORKS TO EXISTING AND NEW SERVICES AT THE MOKOPANE BIODIVERSITY CONSERVATION CENTRE | S162: Bill
A163: =A82 -> G540/2024 | S163: =S82 -> 12
A164: ITEM | B164: PAYMENT | C164: DESCRIPTION | Q164: RATE
A165: NO | B165: REFERS | M165: UNIT | O165: QUANTITY | S165: AMOUNT
B166: TO
B168: 9. Cleaning and painting
B170: All structural steel is to be thoroughly degreased to remove all
B171: grease or oil and then wire-brushed, scraped or sand-papered to
B172: remove all rust, mill-scale or surface contaminations and is to be
B173: immediately given one coatzinc chromate, allowed to dry overnight
B174: and given one coat of universal undercoat prior to delivery to site.
B175: All damaged paintwork is to be made good on site after erection is
B176: complete. (also refer to 12 below)
B178: All structural steel pricing is deemed to include for paint work.
B180: 10. Testing of welders
B182: Tenderers must include in their rates for the testing of any welder
B183: used on the work who has not been tested within a period of six
B184: months immediately preceding his employment on this contract.
B186: 11. Further notes
B188: Also refer to the structural steelwork notes indicated on the
B189: Engineer's relevant structural drawings.
B191: 12. Painting/corrosion protection options
B193: Painted Steelwork"° All steelwork below surface to be painted with
B194: two layers of bitumen paint"° All steelwork surfaces to be painted
B195: and must be free of mill shale, corrosion, grease or dust"° All
B196: steelwork to be cleaned with wire brush in accordance with
B197: SABS 1200HC prior to coating"° All structural steel shall be be
B198: hot-dip galvanised to SANS 121/ISO 1461
B199: (Heavy Duty Application) "° All steelwork exposed surfaces to be
B200: coated with two layers of alkyd enamel paint as final coat
B201: (dark charcoal colour to architect specification)
B203: STEEL COLUMNS, BEAMS, POSTS, ETC. (PAINTED)
B205: Galvanised welded beams/columns in single lengths with flat
B206: section bearer and connection plates bolted to columns and
B207: all necessary fittings, etc.
A209: 1 | B209: 150 x 75 x 20 x 2.5mm Cold formed lipped channels | M209: t | O209: 2
A211: 2 | B211: 152 x 152 x 23kg/m H-Section beams | M211: t | O211: 0.3
A213: 3 | B213: 203 x 133 x 25kg/m I-section beams | M213: t | O213: 4.4
A215: 4 | B215: 254 x 146 x 31kg/m I-section columns | M215: t | O215: 1.1
A217: 5 | B217: 70 x 70 x 6mm Thick angle | M217: t | O217: 0.4
B219: SUNDRIES
B221: BOLTS, FASTENERS, ETC
A223: 6 | B223: High strength M20 HD grade 8.8 bolts | M223: No | O223: 48
A235: =A159 -> BILL No. 12
B236: =B160 -> Bill No. 12 STRUCTURAL WORK carried to collection
A238: CONTRACT NUMBER: | C238: =C1 -> CONSTRUCTION OF A NEW LAPA AND THE REFURBISHMENT OF GATE HOUSE AND ABLUTIONS, EXTERNAL AREAS AND THE INSPECTION AND WORKS TO EXISTING AND NEW SERVICES AT THE MOKOPANE BIODIVERSITY CONSERVATION CENTRE | S238: Bill
A239: =A2 -> G540/2024 | S239: =S163 -> 12
A240: ITEM | B240: PAYMENT | C240: DESCRIPTION | Q240: RATE
A241: NO | B241: REFERS | M241: UNIT | O241: QUANTITY | S241: AMOUNT
B242: TO
B244: =B9 -> STRUCTURAL WORK
B246: COLLECTION
B248: Total Brought Forward from Page No. | M248: 157
M250: =M248+1 -> 158
M252: =M250+1 -> 159
A312: =A235 -> BILL No. 12
B313: Bill No. 12 STRUCTURAL WORK carried to Summary

Sheet Bill 13-Plastering
A1: CONTRACT NUMBER: | C1: ='Bill 1-P&G'!C1 -> CONSTRUCTION OF A NEW LAPA AND THE REFURBISHMENT OF GATE HOUSE AND ABLUTIONS, EXTERNAL AREAS AND THE INSPECTION AND WORKS TO EXISTING AND NEW SERVICES AT THE MOKOPANE BIODIVERSITY CONSERVATION CENTRE | S1: Bill
A2: ='Bill 1-P&G'!A2 -> G540/2024 | S2: 13
A3: Item | B3: DESCRIPTION | Q3: RATE
A4: No. | M4: UNIT | O4: QUANTITY | S4: AMOUNT
B7: BILL NO. 13
B9: PLASTERING
B11: All floors/screeds to be laid according to SABS 0155 - 1980
B12: Accuracy in Buildings and SABS 0155-1980.
B14: SCREEDS
B16: Cement screed with min 25MPa strength to comply with
B17: SANS 10109. Thickness based on desired finish level and
B18: on the surface variations of the concrete sub-base
B19: ensuring the minimum specified thickness of toppings.
B20: To be finished with wood float
A22: 1 | B22: Approximately 35mm thick on floors and landings | M22: m2 | O22: 141
A24: 2 | B24: 25mm Thick on ramps | M24: m2 | O24: 5
B26: EXTERNAL PLASTER
B28: 15mm Thick wood floated sand/cement plaster, Class II mix.
B29: Surface to be dry, sound and clean and cured for a minimum
B30: of 14 days, with a moisture content measured with a Doser
B31: Hygrometer (or equivalent), of BD 2 scale - 8% or less all as
B32: per Architects detail, specification and approval
A34: 3 | B34: On external walls and columns | M34: m2 | O34: 103
A36: 4 | B36: Behind stone wall finish | M36: m2 | O36: 105
B38: INTERNAL PLASTER
B40: 15mm Thick wood floated sand/cement plaster on Class II
B41: mix, surface to be dry, sound and clean and cured for a
B42: minimum of 14 days, with a moisture content measured with
B43: a Doser hygrometer (or equivalent), of BD 2 scale-8% or less
A45: 5 | B45: On internal walls | M45: m2 | O45: 240
A47: 6 | B47: On narrow widths | M47: m2 | O47: 4
B49: 15mm Thick cement plaster on brickwork to receive tiling as
B50: per Architects detail, specification and approval
A52: 7 | B52: On walls to receive tiling | M52: m2 | O52: 5
B54: POLISH, SEALERS, ETC
B56: Prepare and apply a.b.e Construction Chemicals abecote WD
B57: 337 solvent-free water dispersed epoxy coating, all in
B58: accordance with the manufacturer's instructions
A60: 8 | B60: On screed floors | M60: m2 | O60: 146
B62: GRANOLITHIC FINISH ON CONCRETE
B64: 35mm Thick grano finish tinted with Powafix or similar and
B65: approved yellow oxide tinting powder
A67: 9 | B67: On surface beds and ramps | M67: m2 | O67: 146
A76: BILL No. 13
B77: Bill No. 13 PLASTERING carried to summary

Sheet Bill 14- Tile
A1: CONTRACT NUMBER: | C1: ='Bill 1-P&G'!C1 -> CONSTRUCTION OF A NEW LAPA AND THE REFURBISHMENT OF GATE HOUSE AND ABLUTIONS, EXTERNAL AREAS AND THE INSPECTION AND WORKS TO EXISTING AND NEW SERVICES AT THE MOKOPANE BIODIVERSITY CONSERVATION CENTRE | S1: Bill
A2: ='Bill 1-P&G'!A2 -> G540/2024 | S2: 14
A3: Item | B3: DESCRIPTION | Q3: RATE
A4: No. | M4: UNIT | O4: QUANTITY | S4: AMOUNT
B7: BILL NO. 14
B9: TILING
B11: Patterns
B13: Unless otherwise described, tiles shall be laid with continuous joints
B14: in both directions
B16: Fixing
B18: Unless described as "fixed with adhesive to plaster
B19: (plaster elsewhere)" descriptions of tiling on brick or concrete walls,
B20: columns, etc shall be deemed to include 1:4 cement plaster backing
B21: and descriptions of tiling on concrete floors etc shall be deemed to
B22: include 1:3 plaster bedding
B24: Tiling described as "fixed with adhesive on power floated concrete"
B25: shall be deemed to include for approved tiling key-coat
B27: Ceramic, porcelain, marble and granite tiles are to be fixed and
B28: grouted with suitable adhesives and grouts as recommended by
B29: the manufacturer of the tiles
B31: Sealant
B33: Rates to include for white silicone sealant to be applied between all
B34: sanitary fittings and tile finishes
B36: WALL TILING
B38: 300 x 300 x 5mm thick Glazed ceramic wall tiles (PC amount
B39: R 250.00 / m2, excluding VAT, but including delivery) fixed to
B40: wall plaster with Pro Grip adhesive mixed with approved
B41: bonding liquid in lieu of water 3mm joints continuous in one
B42: direction and half length staggered in the other direction and
B43: grouted with approved anti bacterial & chemical resistant
B44: epoxy tile grout.
A46: 1 | B46: On walls | M46: m2 | O46: 5
B48: Sundries: Genesis or similar and approved
A50: 2 | B50: Brushed aluminium straight edge trim size approximately 10/12mm | M50: m | O50: 7
B51: wide x thickness of tile to exposed wall tile edges, corners, etc. as
B52: per Architects detail and specification
A78: BILL No. 14
B79: Bill No. 14 TILING carried to summary

Sheet Bill 15-Plumbing
A1: CONTRACT NUMBER: | C1: ='Bill 1-P&G'!C1 -> CONSTRUCTION OF A NEW LAPA AND THE REFURBISHMENT OF GATE HOUSE AND ABLUTIONS, EXTERNAL AREAS AND THE INSPECTION AND WORKS TO EXISTING AND NEW SERVICES AT THE MOKOPANE BIODIVERSITY CONSERVATION CENTRE | S1: Bill
A2: ='Bill 1-P&G'!A2 -> G540/2024 | S2: 15
A3: Item | B3: DESCRIPTION | Q3: RATE
A4: No. | M4: UNIT | O4: QUANTITY | S4: AMOUNT
B7: BILL NO. 15
B9: PLUMBING & DRAINAGE
B11: SUPPLEMENTARY PREAMBLES
B13: Sealing of edges
B15: Outer edges of sinks, basins, baths, urinals, etc are to be sealed
B16: against adjacent surfaces with approved silicone
B18: ROOF GUTTERS, RAINWATER PIPES, ETC
B20: Aluminium powder coated seamless gutter, overall size
B21: 100 x 100 x 0,6mm thick coated internally and externally
B22: including cut and mitred angles covered with a mitre strip
B23: externally, stop ends crimped and all sealed on the inside
B24: with silicone sealer, secured to fascia with 20 x 2,5mm
B25: internal hanger brackets at 600mm centres using pop
B26: rivets, etc.
A28: 1 | B28: 100 x 100 x 0,6mm Thick seamless gutter | M28: m | O28: 56
A30: 2 | B30: Extra over gutter for corners | M30: No | O30: 6
A32: 3 | B32: Extra over gutter for stop ends | M32: No | O32: 7
A34: 4 | B34: Extra over gutter for outlets | M34: No | O34: 7
B36: 100mm Diameter thick aluminium powder coated downpipe
B37: fixed to wall with straps at 1500mm centres using nail plugs,
B38: with downpipes riveted and silicone sealed to gutter outlets,
B39: including all necessary bends, elbows, shoes etc.
A41: 5 | B41: 100mm Diameter thick aluminium downpipe | M41: m | O41: 16
A43: 6 | B43: Extra over downpipe for shoe | M43: No | O43: 5
A45: 7 | B45: Extra over for 300mm offset projection | M45: No | O45: 5
B47: SANITARY FITTINGS
A49: 8 | B49: Franke Projectline PLN 621 polished stainless steel double end | M49: No | O49: 1
B50: bowl inset sink, overall size approximately 1160 x 460mm with two
B51: 140mm deep bowls, including 38mm waste fittings, with Marley or
B52: similar and approved double drain black rubber deap seal P-trap
B53: with a T-Junction and elbow, neatly penetrated through any shelving
B54: and concealed below counter, to be installed completer onto
B55: counter top as specified by Architects detail and specification
B57: TAPS, VALVES, ETC
A59: 9 | B59: Cobra Watertech (Code 166/041/1CA) or similar and approved | M59: No | O59: 1
B60: Carina wall mounted sink mixer tap with swivel outlet supplied
B61: complete with concealed connections and flange cover plates
B62: including under counter Cobra Watertech (Code 628CA-20) or
B63: similar and approved Carina under wall stop taps for hot and cold
B64: water
A66: 10 | B66: Cobra watertech (Code 232-10) or similar and approved angle | M66: No | O66: 1
B67: regulating valve with sliding flange in chrome finish
A69: 11 | B69: Cobra Watertech or similar and approved braided flexible inlet | M69: No | O69: 1
B70: tubing, blue and red
A72: 12 | B72: Cobra Watertech (Code 311) or similar and approved unslotted sink | M72: No | O72: 1
B73: waste complete with plug, flange, shank, male outlet, connection
B74: and backnut in chrome finish
A78: BILL No. 15
B79: Bill No. 15 PLUMBING & DRAINAGE carried to collection
A81: CONTRACT NUMBER: | C81: =C1 -> CONSTRUCTION OF A NEW LAPA AND THE REFURBISHMENT OF GATE HOUSE AND ABLUTIONS, EXTERNAL AREAS AND THE INSPECTION AND WORKS TO EXISTING AND NEW SERVICES AT THE MOKOPANE BIODIVERSITY CONSERVATION CENTRE | S81: Bill
A82: =A2 -> G540/2024 | S82: =S2 -> 15
A83: ITEM | B83: PAYMENT | C83: DESCRIPTION | Q83: RATE
A84: NO | B84: REFERS | M84: UNIT | O84: QUANTITY | S84: AMOUNT
B85: TO
A87: 13 | B87: Precast concrete gulley size approximately 445 x 430 x 165mm with | M87: No | O87: 1
B88: 125mm diameter hole with PVC grid cover per gully position
B89: including underground 110mm PVC gulley P-trap exceeding
B90: 500mm and not exceeding 750mm deep
B92: PLUMBING
B94: Sanitary plumbing & water supply (measured per point)
B96: Provide all necessary in class II copper piping, branches,
B97: pipe fittings, valves as required for cold water supply from
B98: main water supply point at perimeter of building to the
B99: following sanitary fittings, complete
B101: Provide all necessary in class II copper piping, brances, pipe
B102: fittings, valve all insulated with an R-value of "1" and as
B103: required for hot water supply from central geyser/hot water
B104: supply to the following sanitary fittings, complete
B106: Provide 50/75mm PVC waste piping to the following sanitary
B107: fittings to be discharged into 110mm HDPE sub surface soil
B108: piping on the same level (elsewhere) or current stack system
B109: where shown, including any necessary fittings, trenches
B110: complete
A112: 14 | B112: Sink (hot and cold water and waste) | M112: No | O112: 1
A114: 15 | B114: Geyser/Hot water supply | M114: No | O114: 1
B116: ELECTRIC WATER HEATERS
A118: 16 | B118: Kwikot or similar and approved 50 Litre Superline 400 Dual electric | M118: No | O118: 1
B119: water heater (Code: DSG-50-5) complying with SABS 151-2002,
B120: overall size 535 x 543mm high fitted with isolator switch, operating at
B121: 400kPa temperature and pressure safety relief valve including
B122: 20mm female draincock with inlet compression. Geyser to be
B123: installed horizontally in roof space with 600 x 600mm wide
B124: polyethylene drip tray with union and back nut connected to 20mm
B125: PVC overflow pipe taken out at eaves (Code: GSTP-1200) and
B126: 22mm pipe work including two 22mm vacuum breakers
B127: (Code: KHN4.200CX) installed on hot and cold water supply.
B128: Installation to include a Kwikot Multi control and expansion relief
B129: valve, all in accordance with SANS 10254, connected to single
B130: phase electrical power supply.
B132: TESTING
A134: 17 | B134: Testing water pipe system (per building) | M134: No | O134: 1
B136: BUDGETARY ALLOWANCES
B138: The following Budgetary Allowances are for work to be
B139: executed by the Main Contractor or specialist suppliers and
B140: priced at Bill rates or rates to be agreed.
A142: 18 | B142: Provide the sum of R15 000.00 (Fifteen Thousand) for additional | M142: Item | S142: R15,000.00
B143: general work sill to be designed and will/may be carried out by the
B144: contractor
A158: =A78 -> BILL No. 15
B159: Bill No. 15 Plumbing carried to collection
A161: CONTRACT NUMBER: | C161: =C1 -> CONSTRUCTION OF A NEW LAPA AND THE REFURBISHMENT OF GATE HOUSE AND ABLUTIONS, EXTERNAL AREAS AND THE INSPECTION AND WORKS TO EXISTING AND NEW SERVICES AT THE MOKOPANE BIODIVERSITY CONSERVATION CENTRE | S161: Bill
A162: =A82 -> G540/2024 | S162: =S82 -> 15
A163: ITEM | B163: PAYMENT | C163: DESCRIPTION | Q163: RATE
A164: NO | B164: REFERS | M164: UNIT | O164: QUANTITY | S164: AMOUNT
B165: TO
B167: =B9 -> PLUMBING & DRAINAGE
B169: COLLECTION
B171: Total Brought Forward from Page No. | M171: 163
M173: =M171+1 -> 164
A235: =A158 -> BILL No. 15
B236: Bill No. 15 PLUMBING & DRAINAGE carried to Summary

Sheet Bill 16-Painting
A1: CONTRACT NUMBER: | C1: ='Bill 1-P&G'!C1 -> CONSTRUCTION OF A NEW LAPA AND THE REFURBISHMENT OF GATE HOUSE AND ABLUTIONS, EXTERNAL AREAS AND THE INSPECTION AND WORKS TO EXISTING AND NEW SERVICES AT THE MOKOPANE BIODIVERSITY CONSERVATION CENTRE | S1: Bill
A2: ='Bill 1-P&G'!A2 -> G540/2024 | S2: 16
A3: Item | B3: DESCRIPTION | Q3: RATE
A4: No. | M4: UNIT | O4: QUANTITY | S4: AMOUNT
B7: BILL NO. 16
B9: PAINTWORK
B11: SUPPLEMENTARY PREAMBLES
B13: All surfaces to be thoroughly prepared according to
B14: manufacturers' specifications.
B16: The quality of all preparation work and individual coats shall be to the
B17: satisfaction of the Architect (or his appointed representative) before
B18: any successive paintwork is undertaken.
B20: All paint to new and existing surfaces are to be painted with
B21: Plascon, Dulux or similar approved (by Architect).
B23: Plastered surfaces, etc.
B25: Plastered surfaces shall be thoroughly inspected and, if necessary,
B26: washed down and brushed in order to remove any traces of
B27: efflorescence and allowed to dry completely before any paint finish
B28: is applied. Before any paint is applied, holes, cracks and
B29: irregularities in plaster and other surfaces shall be filled with a
B30: suitable filler and finished smooth. Unfinished concrete surfaces
B31: shall have all projections rubbed off and shall be thoroughly cleaned
B32: with a spirits-of-salts solution (1 part concentrated spirits-of-salts to
B33: 4 parts water).
B35: Previously painted plastered surfaces
B37: Surfaces shall be thoroughly washed down and allowed to dry
B38: completely before any paint is applied. Blistered or peeling paint
B39: shall be completely removed and cracks shall be opened, filled
B40: with a suitable filler and finished smooth.
B42: Previously painted plasterboard surfaces
B44: Surfaces shall be thoroughly cleaned before any paint is applied.
B45: Blistered or peeling paint shall be completely removed and cracks
B46: shall be opened, filled with a suitable filler and finished smooth.
B47: Steel H-strips and nails to be reprimed with calcium plumbate
B48: primer.
B50: Previously painted metal surfaces
B52: Surfaces shall be thoroughly rubbed and cleaned down. Blistered or
B53: peeling paint shall be completely removed down to bare metal.
B55: Previously painted wood surfaces
B57: Surfaces shall be thoroughly cleaned down. Blistered or peeling
B58: paint shall be completely removed and cracks and crevices shall be
B59: primed, filled with suitable filler and finished smooth. Existing wood
B60: surfaces to be stripped, neutralised, sanded and treated.
B62: PAINTWORK ETC TO PREVIOUSLY PAINTED/NEW WORK
B64: ON SKIMMED PLASTER
B66: Prepare, apply one coat suitable plaster primer to entire surface,
B67: one coat Plascon acrylic polvin paint and finish with two coats of
B68: Plascon super acrylic polvin Matt paint in compliance with SANS
B69: specifications (or similar and approved)
A71: 1 | B71: On internal plastered walls | M71: m2 | O71: 240
A73: 2 | B73: On narrow widths | M73: m2 | O73: 4
A77: BILL No. 16
B78: Bill No. 16 PAINTWORK carried to collection
A80: CONTRACT NUMBER: | C80: =C1 -> CONSTRUCTION OF A NEW LAPA AND THE REFURBISHMENT OF GATE HOUSE AND ABLUTIONS, EXTERNAL AREAS AND THE INSPECTION AND WORKS TO EXISTING AND NEW SERVICES AT THE MOKOPANE BIODIVERSITY CONSERVATION CENTRE | S80: Bill
A81: =A2 -> G540/2024 | S81: =S2 -> 16
A82: ITEM | B82: PAYMENT | C82: DESCRIPTION | Q82: RATE
A83: NO | B83: REFERS | M83: UNIT | O83: QUANTITY | S83: AMOUNT
B84: TO
B86: Prepare, apply one coat suitable plaster primer to entire
B87: one coat Plascon acrylic polvin paint or similar and approved
B88: and finish with two coats of Plascon super acrylic polvin
B89: Matt paint in compliance with SANS specifications
B90: or similar and approved
A92: 3 | B92: On external brick plastered walls and columns | M92: m2 | O92: 103
B94: ON METAL
B96: Prepare one coat Plascon mild or similar and approved steel
B97: red oxide primer, one coat merit unversal undercoat and two
B98: coats gloss enamel paint undercoat, and two coats Plascon
B99: gloss enamel paint
A101: 4 | B101: On new steel windows | M101: m2 | O101: 8
A103: 5 | B103: On burglar bars measured net | M103: m2 | O103: 8
A105: 6 | B105: On new steel doors and frames | M105: m2 | O105: 2
B107: ON WOOD
B109: Prepare one coat Plascon wood primer, Pink undercoat, on
B110: White coat merit universal undercoat,
B111: (or similar and approved)
A113: 7 | B113: On timber doors | M113: m2 | O113: 7
B115: Prepare three coats Plascon FPR Woodcare preservative
B116: Woodcare preservative (or similar and approved)
A118: 8 | B118: On existing and new timber roof structures measured net | M118: m2 | O118: 177
B120: Prepare one coat Plasconwood primer, Pink undercoat, one
B121: coat merit universal undercoat, White undercoat, and
B122: two coats Plascon gloss enamel paint
B123: (or similar and approved)
A125: 9 | B125: Skirtings not exceeding 300mm girth | M125: m2 | O125: 32
B127: Prepare, two coats gloss enamel paint
A129: 10 | B129: Fascias and barge boards not exceeding 300mm girth | M129: m2 | O129: 160
A155: =A77 -> BILL No. 16
B156: Bill No. 16 PAINTWORK carried to collection
A158: CONTRACT NUMBER: | C158: =C1 -> CONSTRUCTION OF A NEW LAPA AND THE REFURBISHMENT OF GATE HOUSE AND ABLUTIONS, EXTERNAL AREAS AND THE INSPECTION AND WORKS TO EXISTING AND NEW SERVICES AT THE MOKOPANE BIODIVERSITY CONSERVATION CENTRE | S158: Bill
A159: =A2 -> G540/2024 | S159: =S2 -> 16
A160: ITEM | B160: PAYMENT | C160: DESCRIPTION | Q160: RATE
A161: NO | B161: REFERS | M161: UNIT | O161: QUANTITY | S161: AMOUNT
B162: TO
B164: =B9 -> PAINTWORK
B166: COLLECTION
B168: Total Brought Forward from Page No. | M168: 166
M170: =M168+1 -> 167
A232: =A155 -> BILL No. 16
B233: Bill No. 16 PAINTWORK carried to Summary

Sheet Bill 17-Site Works
A1: CONTRACT NUMBER: | C1: ='Bill 1-P&G'!C1 -> CONSTRUCTION OF A NEW LAPA AND THE REFURBISHMENT OF GATE HOUSE AND ABLUTIONS, EXTERNAL AREAS AND THE INSPECTION AND WORKS TO EXISTING AND NEW SERVICES AT THE MOKOPANE BIODIVERSITY CONSERVATION CENTRE | S1: Bill
A2: ='Bill 1-P&G'!A2 -> G540/2024 | S2: 17
A3: Item | B3: DESCRIPTION | Q3: RATE
A4: No. | M4: UNIT | O4: QUANTITY | S4: AMOUNT
B7: BILL NO. 17
B9: SITE WORKS AND DEMOLITIONS
B11: SUPPLEMENTARY PREAMBLES
B13: REMOVAL OF EXISTING WORK
B15: SPECIAL PREAMBLES
B17: REMOVE
B19: The term "remove" shall mean breaking out as required to remove
B20: the item described, disposal of all rubble and old materials, and
B21: making good all work disturbed to match existing.
B23: Remove walls or partitions shall mean breaking down complete
B24: to structure of walls, etc. and trimming up edges and disposal
B25: of rubble and all old materials from site (old materials as
B26: elsewhere described).
B28: Prices shall include for protecting adjacent surfaces repairing
B29: such damage should it occur.
B31: OLD MATERIAL BECOMES THE PROPERTY OF THE
B32: CONTRACTOR
B34: Old material from the alterations except where described for re-use
B35: or handing over, will become the property of the Contractor for which
B36: Credit must be allowed.
B38: OLD MATERIAL MUST BE CARTED AWAY
B40: Old material from the alterations except where described for re-use
B41: or handing over, as well as all debris must regularly be carted away
B42: from site and not be accumulated on site.
B44: OLD MATERIAL MAY NOT BE RE-USED
B46: No old material may be re-used for new work except where it is
B47: specifically described as set aside for re-use.
B49: DISPOSAL OF DEBRIS, ETC
B51: The Contractor shall be responsible for the removal from the site of
B52: all materials, debris and rubbish resulting from the
B53: alterations/demolitions.
B55: GENERAL
B57: Damage To Persons And Property
B59: All demolitions, pulling down, alterations etc., are to be carried out
B60: carefully and in the safest possible manner. The Contractor is to
B61: ascertain that all alterations are structurally practicable and safe and
B62: he will be held solely responsible for any damage to property or work
B63: adjoining the pulling down and must make good at his own expense.
B65: Programming Of The Works
B67: The programming of demolitions and alterations will have to be
B68: co-ordinated with the Principal Agent.
A74: BILL No. 17
B75: Bill No. 17 SITE WORKS AND DEMOLITIONS carried to collection
A77: CONTRACT NUMBER: | C77: =C1 -> CONSTRUCTION OF A NEW LAPA AND THE REFURBISHMENT OF GATE HOUSE AND ABLUTIONS, EXTERNAL AREAS AND THE INSPECTION AND WORKS TO EXISTING AND NEW SERVICES AT THE MOKOPANE BIODIVERSITY CONSERVATION CENTRE | S77: Bill
A78: =A2 -> G540/2024 | S78: =S2 -> 17
A79: ITEM | B79: PAYMENT | C79: DESCRIPTION | Q79: RATE
A80: NO | B80: REFERS | M80: UNIT | O80: QUANTITY | S80: AMOUNT
B81: TO
B83: Care Of Utility Services
B85: Special care is to be exercised not to interfere with any drains,
B86: electrical supply, data, or telephone cables and fittings to same.
B87: Notice is to be given to the Principal Agent when any
B88: disconnections, removal of wires etc. are necessary and the
B89: Contractor is to afford every facility to the workmen carrying out
B90: this work.
B92: Permission must be obtained from the Principal Agent before
B93: any services are cut off at any time.
B95: Temporary Shoring Etc.
B97: Prices are to include for providing, fixing and maintaining in position
B98: generally as required all temporary shoring, needling, strutting etc.,
B99: necessary for the proper execution of the alterations in this Contract
B100: and for removing same.
B102: Supervision
B104: The demolition work is to be executed in a workmanlike, practical
B105: and safe manner under the continual supervision of a competent
B106: foremen.
B108: Nature of ground
B110: A soils investigation has been carried out on site by the engineer
B111: and the report is available upon request. Descriptions of
B112: excavations shall be deemed to include all ground conditions
B113: classifiable as "earth" described in the above report and where
B114: conditions of a more difficult character are indicated these are s
B115: eparately measured
B117: Carting away of excavated material
B119: Descriptions of carting away of excavated material shall be
B120: deemed to include loading excavated material onto trucks
B121: directly from the excavations or, alternatively, from stock piles
B122: situated on the building site
B124: Subterranean water
B126: The tenderer must acquaint himself of the presence and depth of
B127: subterranean water and allow therefore in his prices.
B129: Carting away of excavated material
B131: Descriptions of carting away of excavated material shall be deemed
B132: to include loading excavated material onto trucks directly from the
B133: excavations or, alternatively, from stock piles situated on the building
B134: site
B136: Filling and layer work materials
B138: References such as "G1", "G2", etc and "C1", "C2", etc in
B139: descriptions of filling and layer work materials refer to corresponding
B140: references in the document "Guidelines for Road Construction
B141: Materials. TRH 14:1985" compiled by the Committee of State Road
B142: Authorities and the properties set out therein for each kind shall be
B143: applicable to the respective materials described hereinafter
B146: Testing
B148: Descriptions & prices for earth filling, compaction, etc. are deemed
B149: to include for all necessary density and other testing required in
B150: accordance with the SABS 1200 series and Engineer's
B151: specifications
A156: BILL No. 17
B157: =B75 -> Bill No. 17 SITE WORKS AND DEMOLITIONS carried to collection
A159: CONTRACT NUMBER: | C159: =C77 -> CONSTRUCTION OF A NEW LAPA AND THE REFURBISHMENT OF GATE HOUSE AND ABLUTIONS, EXTERNAL AREAS AND THE INSPECTION AND WORKS TO EXISTING AND NEW SERVICES AT THE MOKOPANE BIODIVERSITY CONSERVATION CENTRE | S159: Bill
A160: =A78 -> G540/2024 | S160: =S78 -> 17
A161: ITEM | B161: PAYMENT | C161: DESCRIPTION | Q161: RATE
A162: NO | B162: REFERS | M162: UNIT | O162: QUANTITY | S162: AMOUNT
B163: TO
B165: SITE CLEARANCE ETC
B167: Site clearance
A169: 1 | B169: Digging up and removing rubbish, debris, vegetation, hedges, | M169: m² | O169: 310
B170: shrubs and trees not exceeding 200mm girth, bush, etc
A172: 2 | B172: Stripping average 150mm thick layer of top soil and stockpile on | M172: m² | O172: 310
B173: site
B175: REMOVAL OF TREES ETC
B177: Cutting down and removing, grubbing up roots and
B178: filling in holes
A180: 3 | B180: Tree exceeding 200mm and not exceeding 500mm girth | M180: No | O180: 3
A182: 4 | B182: Tree exceeding 500mm and not exceeding 1000mm girth | M182: No | O182: 3
A184: 5 | B184: Tree exceeding 1000mm and not exceeding 1500mm girth | M184: No | O184: 3
A186: 6 | B186: Tree exceeding 1500mm and not exceeding 2000mm girth | M186: No | O186: 5
B188: BULK EXCAVATION, FILLING, ETC
B190: G5 Earth filling supplied by the contractor compacted to
B191: 98% MDD
A193: 7 | B193: Over site to form platforms | M193: m³ | O193: 121
B195: G5 Earth filling to create stormwater berm with overall size
B196: 500mm wide top section, 3500mm wide bottom section and
B197: 1:3 slope supplied by the contractor compacted to 95% MDD
B198: as per engineers design and specifications
A200: 8 | B200: Over site to form stormwater berm | M200: m³ | O200: 88
B202: G6 Earth filling supplied by the contractor compacted to
B203: 95% MDD, to Engineers approval
A205: 9 | B205: Over site to form platforms | M205: m³ | O205: 47
B207: G7 Earth filling supplied by the contractor compacted to
B208: 95% , to Engineers approval
A210: 10 | B210: Over site to form platforms | M210: m³ | O210: 56
B212: Compaction of surfaces
A214: 11 | B214: Compaction of ground surface under floors etc including scarifying | M214: m³ | O214: 464
B215: for a depth of 150mm, breaking down oversize material, adding
B216: suitable material where necessary and compacting to 98% MDD
B218: BUDGETARY ALLOWANCES
B220: The following Budgetary Allowances are for work to be
B221: executed by the Main Contractor or specialist suppliers and
B222: priced at Bill rates or rates to be agreed and to be used as
B223: directed by the Principal Agent and to be deducted in whole
B224: or in part if not required
A226: 12 | B226: Provide the sum of R50 000.00 (Fifty Thousand Rands) for work | M226: Item | S226: R50,000.00
B227: related to unknown circumstances of the site condition
A230: =A156 -> BILL No. 17
B231: =B157 -> Bill No. 17 SITE WORKS AND DEMOLITIONS carried to collection
A233: CONTRACT NUMBER: | C233: =C1 -> CONSTRUCTION OF A NEW LAPA AND THE REFURBISHMENT OF GATE HOUSE AND ABLUTIONS, EXTERNAL AREAS AND THE INSPECTION AND WORKS TO EXISTING AND NEW SERVICES AT THE MOKOPANE BIODIVERSITY CONSERVATION CENTRE | S233: Bill
A234: =A2 -> G540/2024 | S234: =S2 -> 17
A235: ITEM | B235: PAYMENT | M235: Page No.
A236: NO | B236: REFERS | S236: AMOUNT
B237: TO
B239: =B9 -> SITE WORKS AND DEMOLITIONS
B241: COLLECTION
B243: Total Brought Forward from Page No. | M243: 169
M245: =M243+1 -> 170
M247: =M245+1 -> 171
A304: =B7 -> BILL NO. 17
B305: Bill No. 17 SITE WORKS AND DEMOLITIONS carried to Summary

Sheet Bill 18- Road
A1: CONTRACT NUMBER: | C1: ='[1]Bill 1-P&G'!C1 -> CONSTRUCTION OF A NEW LAPA AND THE REFURBISHMENT OF GATE HOUSE AND ABLUTIONS, EXTERNAL AREAS AND THE INSPECTION AND WORKS TO EXISTING AND NEW SERVICES AT THE MOKOPANE BIODIVERSITY CONSERVATION CENTRE | S1: Bill
A2: ='[1]Bill 1-P&G'!A2 -> G540/2024 | S2: 18
A3: Item | B3: DESCRIPTION | Q3: RATE
A4: No. | M4: UNIT | O4: QUANTITY | S4: AMOUNT
B7: BILL NO. 18
B9: ROADWORKS, PAVING
B11: SUPPLEMENTARY PREAMBLES
B13: Nature of ground
B15: A soils investigation has been carried out on site by the engineer
B16: and the report is available upon request. Descriptions of
B17: excavations shall be deemed to include all ground conditions
B18: classifiable as "earth" described in the above report and where
B19: conditions of a more difficult character are indicated these are
B20: separately measured.
B22: Carting away of excavated material
B24: Descriptions of carting away of excavated material shall be
B25: deemed to include loading excavated material onto trucks directly
B26: from the excavations or, alternatively, from stock piles situated
B27: on the building site and disposing of same from site.
B29: Subterranean water
B31: The tenderer must acquaint himself of the presence and depth of
B32: subterranean water and allow therefore in his prices.
B34: Carting away of excavated material
B36: Descriptions of carting away of excavated material shall be deemed
B37: to include loading excavated material onto trucks directly from the
B38: excavations or, alternatively, from stock piles situated on the
B39: building site.
B41: Filling and layer work materials
B43: References such as "G1", "G2", etc and "C1", "C2", etc in
B44: descriptions of filling and layer work materials refer to
B45: corresponding references in the document "Guidelines for Road
B46: Construction Materials. TRH 14 : 1985" compiled by the
B47: Committee of State Road Authorities and the properties set out
B48: therein for each kind shall be applicable to the respective
B49: materials described hereinafter
B51: Testing
B53: Descriptions & prices for earth filling, compaction, etc. are deemed
B54: to include for all necessary density and other testing required in
B55: accordance with the SABS 1200D and Engineer's specifications
B57: General
B59: Where kerb-stones, blocks, etc are laid in ground descriptions shall
B60: be deemed to include necessary excavation, filling in and ramming
B62: EXCAVATION, FILLING, ETC. OTHER THAN BULK
B64: Excavation in compacted earth not exceeding 2m deep
A66: 1 | B66: Reduce levels | M66: m³ | O66: 856
B68: Extra over all excavations for carting away
A70: 2 | B70: Surplus material from excavations and/or stock piles on site to a
B71: dumping site to be located by the contractor | M71: m³ | O71: 856
A80: BILL No. 18
B81: Bill No. 18 ROADWORKS, PAVING carried to collection
A83: CONTRACT NUMBER: | C83: =C1 -> CONSTRUCTION OF A NEW LAPA AND THE REFURBISHMENT OF GATE HOUSE AND ABLUTIONS, EXTERNAL AREAS AND THE INSPECTION AND WORKS TO EXISTING AND NEW SERVICES AT THE MOKOPANE BIODIVERSITY CONSERVATION CENTRE | S83: Bill
A84: =A2 -> G540/2024 | S84: =S2 -> 18
A85: ITEM | B85: PAYMENT | C85: DESCRIPTION | Q85: RATE
A86: NO | B86: REFERS | M86: UNIT | O86: QUANTITY | S86: AMOUNT
B87: TO
B89: Compaction of surfaces
A91: 3 | B91: Compaction of ground surface under floors, etc. including scarifying
B92: for a depth of 150mm, breaking down oversize material, adding
B93: suitable material where necessary and compacting to
B94: 90% MDD density | M94: m² | O94: 1878
B96: G5 Earth filling supplied by the contractor and compacted to
B97: 95% MDD density
A99: 4 | B99: Under floors, steps, ramps, pavings, etc | M99: m³ | O99: 282
B101: G6 Earth filling supplied by the contractor and compacted to
B102: 93% MDD
A104: 5 | B104: Under floors, steps, ramps, pavings, etc | M104: m³ | O104: 564
B106: WEED KILLERS, INSECTICIDES, ETC
B108: Weedkiller (active ingredients metalaclor 102,8 g/l, terbitilasien
B109: 248,6 g/l and atrasien 248,6 g/l) mixed in the proportion of 100 ml
B110: weedkiller to 100 l water and applied at a rate of 10 l/m×½
B112: Soil insecticide in accordance with SANS 5859
B114: Approved brand of anti-termite soil poison and weedkiller
B115: to be applied by a Registered Company and guaranteed for
B116: ten years
A118: 6 | B118: Under paving | M118: m² | O118: 1878
B120: PAVING, KERBING AND CHANNELLING
B122: Rates for paving must include all cutting including circular cutting
B124: SEGMENTED PAVING
B126: 200 x 150 x 60mm Thick Bosun Ethnic cement paver or
B127: similar and approved interlocking paving brick, laid in
B128: herringbone pattern in accordance with SANS 1200 MJ and
B129: CMA Concrete Block Paving Manuals, with a minimum
B130: longitudinal fall of 1% on a transverse fall of at least 2%
B131: on 20mm compacted sand bed with fine jointing sand
B132: swept and vibrated into joints, all laid on subbase
B133: conforming to SANS 1200 D Degree of Accuracy
B134: (sub-base elsewhere measured) 1. Paving to binspected
B135: and re-sanded after three months.
A137: 7 | B137: Paving to walkways, roads, parking areas etc. | M137: m² | O137: 1805
A139: 8 | B139: 300mm Wide header course paving to make up paving borders | M139: m | O139: 245
B141: KERBS
B143: Figure 7 Barrier concrete kerb, including in-situ concrete
B144: (class 25MPa/19mm stone) haunching behind kerbing at
B145: joints, with pointing on all exposed sides, including all
B146: necessary excavation, backfilling, carting away, continuous
B147: concrete haunching on curves, concrete haunching in blobs
B148: on straights, etc. Jointed & pointed in joint sealant with
B149: 10mm soft board and polyurethane sealant with approved
B150: primer
A152: 9 | B152: Laid flat | M152: m | O152: 161
A154: 10 | B154: Laid flat circular on plan, exceeding 4m radius | M154: m | O154: 7
A163: =A80 -> BILL No. 18
B164: =B81 -> Bill No. 18 ROADWORKS, PAVING carried to collection
A166: CONTRACT NUMBER: | C166: =C83 -> CONSTRUCTION OF A NEW LAPA AND THE REFURBISHMENT OF GATE HOUSE AND ABLUTIONS, EXTERNAL AREAS AND THE INSPECTION AND WORKS TO EXISTING AND NEW SERVICES AT THE MOKOPANE BIODIVERSITY CONSERVATION CENTRE | S166: Bill
A167: =A84 -> G540/2024 | S167: =S84 -> 18
A168: ITEM | B168: PAYMENT | C168: DESCRIPTION | Q168: RATE
A169: NO | B169: REFERS | M169: UNIT | O169: QUANTITY | S169: AMOUNT
B170: TO
B172: Figure 10 Precast concrete kerb, including in-situ concrete
B173: (class 25MPa/19mm stone) haunching behind kerbing at
B174: joints, with pointing on all exposed sides, including all
B175: necessary excavation backfilling, carting away, continuous
B176: concrete haunching on curves, concrete haunching in blobs
B177: on straights, etc. Jointed & pointed in joint sealant with 10mm
B178: soft board and polyurethane sealant with approved
A180: 11 | B180: Laid flat | M180: m | O180: 533
B182: Prepare and paint with SANS approved road marking paint
B183: in white / yellow / red sheen road marking paint on
B184: concrete paving / kerbs
A186: 12 | B186: Line 100mm wide, broken or continuous | M186: m | O186: 620
A188: 13 | B188: White numeral or letter approximately 510mm x 1260mm | M188: No | O188: 51
B189: (measured at extremes)
A191: 14 | B191: White traffic arrow approximately 1000mm x 4000mm | M191: No | O191: 12
B192: (measured at extremes)
A194: 15 | B194: Paraplegic Sign approximately 1300mm x 1400mm | M194: No | O194: 3
B195: (measured at extremes)
B198: BUDGETARY ALLOWANCES
B200: The following Budgetary Allowances are for work to be
B201: executed by the Main Contractor or specialist suppliers and
B202: priced at Bill rates or rates to be agreed and to be used as
B203: directed by the Principal Agent and to be deducted in whole
B204: or in part if not required
A206: 16 | B206: Provide the sum of R15 000.00 (Fifteen Thousand Rands) for | M206: Item | S206: R15,000.00
B207: permanent road signage
A209: 17 | B209: Provide the sum of R50 000.00 (Fifty Thousand Rands) for | M209: Item | S209: R50,000.00
B210: additional general work sill to be designed and will/may be
B211: carried out by the contractor
A213: 18 | B213: Cement for roadbed stabilisation | M213: ton | O213: 30
B214: (4% of 150mm layer ≈ 20kg/m²)
A216: 19 | B216: In-situ stabilisation of roadbed using 4% cement, | M216: m3 | O216: 200
B217: 150mm thick, incl. mixing & compaction
A241: =A163 -> BILL No. 18
B242: =B164 -> Bill No. 18 ROADWORKS, PAVING carried to collection
A244: CONTRACT NUMBER: | C244: =C1 -> CONSTRUCTION OF A NEW LAPA AND THE REFURBISHMENT OF GATE HOUSE AND ABLUTIONS, EXTERNAL AREAS AND THE INSPECTION AND WORKS TO EXISTING AND NEW SERVICES AT THE MOKOPANE BIODIVERSITY CONSERVATION CENTRE | S244: Bill
A245: =A2 -> G540/2024 | S245: =S2 -> 18
A246: ITEM | B246: PAYMENT | M246: Page No.
A247: NO | B247: REFERS | S247: AMOUNT
B248: TO
B250: =B9 -> ROADWORKS, PAVING
B252: COLLECTION
B254: Total Brought Forward from Page No. | M254: 173
M256: =M254+1 -> 174
M258: =M256+1 -> 175
A318: =A241 -> BILL No. 18
B319: Bill No. 18 ROADWORKS, PAVING carried to Summary

Sheet Bill 19- Fence
A1: CONTRACT NUMBER: | C1: ='[1]Bill 1-P&G'!C1 -> CONSTRUCTION OF A NEW LAPA AND THE REFURBISHMENT OF GATE HOUSE AND ABLUTIONS, EXTERNAL AREAS AND THE INSPECTION AND WORKS TO EXISTING AND NEW SERVICES AT THE MOKOPANE BIODIVERSITY CONSERVATION CENTRE | S1: Bill
A2: ='[1]Bill 1-P&G'!A2 -> G540/2024 | S2: 19
A3: Item | B3: DESCRIPTION | Q3: RATE
A4: No. | M4: UNIT | O4: QUANTITY | S4: AMOUNT
B7: BILL NO. 19
B9: FENCING AND GATES
B11: METAL FENCING
B13: High density anti-climbing and anti-cut pressed mesh panel fencing
B15: Fencing to be installed on a sloping site, Contractor to
B16: allow for additional vertical supporting members at
B17: smaller intervals along a sloping site
A19: 1 | B19: High density anti-climbing and anti-cut pressed mesh panel fencing | M19: m | O19: 56
B20: 2,4m high, formed of 3mm diameter horizontal and 3mm diameter
B21: vertical high tensile wires powder coated charcoal with aperture size
B22: 76mm x 25mm and reinforcing V-section ribs, bolted with vandal
B23: resistant bolts and clamping plates to 76mm x 76mm x 2mm mild
B24: steel posts 3,0m high including Locking Recess Mechanism at
B25: 3,382m centres with sealed end caps and 30 x 3mm x 250mm long
B26: angle section base anchors with posts bedded in 15MPa
B27: concrete bases size 400 x 400 x 600mm deep.
A29: 2 | B29: Mesh Extension 600mm high fixed to underside of fencing including | M29: m | O29: 56
B30: excavations and bedding
A32: 3 | B32: Extra over fence for spike topping to match fence | M32: m | O32: 56
B34: GATES
B36: Vehicle Sliding Gate to match fencing
A38: 4 | B38: 9900mm Wide x 2600mm high mild steel sliding gate with | M38: No | O38: 1
B39: 120 x 60mm rectangular tubing frame.Frame to have three vertical
B40: 120 x 60mm rectangular tubing supports spaced equally inside
B41: frame. Frame infill panels to be 4mm diameter vertical and 3mm
B42: diameter horizontal mesh with opening of 76 x 12mm.The mesh
B43: panel shall be reinforced with 4 x 50mm deep V-information
B44: horizontal recessed bands. All to be galvanised then powder
B45: coated colour: dark charcoal to match window frame as per
B46: Architects detail. Including galvanised pad bolts and mortice locks
B47: two per gate. Gate to be supported by three steel roller brackets
B48: positioned underneath each vertical support member, each
B49: with 2 x 80mm dia steel rollers. All as per Architect's details and
B50: specifications
A52: 5 | B52: Extra over above for gate rail to be 19mm diameter steel bar welded to | M52: No | O52: 1
B53: a 100x50mm IPE steel sections anchored into a 300mm deep
B54: concrete bedding using a 40x40mm steel angle welded to the IPE
B55: section at 300mm c/c. All as per Architect's detail and specifications
A57: 6 | B57: 100mm High toughened steel shark-tooth spike rail to be fixed to the | M57: m | O57: 11
B58: top of the gate using anti-vandal bolts.Spike finish to match fencing.
A60: 7 | B60: Supply and install gate motor and remotes to Engineers approval | M60: No | O60: 1
B62: Pedestrian Gates to match fencing
A64: 8 | B64: 2.6m high x 1.5m wide mild steel pedestrian gate with 100 x 50mm | M64: No | O64: 1
B65: rectangular tubing frame. Frame infill panel to be 4mm diameter
B66: vertical and 3mm diameter horizontal mesh with openings of
B67: 76 x 12mm. The mesh panel shall be reinforced with 4 x 50mm
B68: deep V-formation horizontal recessed bands. All to be galvanised
B69: then powder coated colour: dark charcoal to match sliding gate
B70: All as per Architect's details and specifications. Including galvanised
B71: pad bolts and mortice locks two per gate
A78: BILL No. 19
B79: Bill No. 19 FENCING AND GATES carried to collection
A81: CONTRACT NUMBER: | C81: =C1 -> CONSTRUCTION OF A NEW LAPA AND THE REFURBISHMENT OF GATE HOUSE AND ABLUTIONS, EXTERNAL AREAS AND THE INSPECTION AND WORKS TO EXISTING AND NEW SERVICES AT THE MOKOPANE BIODIVERSITY CONSERVATION CENTRE | S81: Bill
A82: =A2 -> G540/2024 | S82: =S2 -> 19
A83: ITEM | B83: PAYMENT | C83: DESCRIPTION | Q83: RATE
A84: NO | B84: REFERS | M84: UNIT | O84: QUANTITY | S84: AMOUNT
B85: TO
A87: 9 | B87: 2.1m high x 3m wide mild steel double swing pedestrian gate with | M87: No | O87: 1
B88: 100 x 50mm rectangular tubing frame. Frame infill panel to be 4mm
B89: diameter vertical and 3mm diameter horizontal mesh with openings
B90: of 76 x 12mm. The mesh panel shall be reinforced with 4 x 50mm
B91: deep V-formation horizontal recessed bands. All to be galvanised
B92: then powder coated colour: dark charcoal to match sliding gate All
B93: as per Architect's details and specifications. Including galvanised
B94: pad bolts and mortice locks two per gate
A96: 10 | B96: 100mm High toughened steel shark-tooth spike rail to be fixed to the
B97: top of the mesh panel using anti-vandal bolts.Spike finish to be
B98: hot dipped galvanised | M98: m | O98: 5
A158: =A78 -> BILL No. 19
B159: =B79 -> Bill No. 19 FENCING AND GATES carried to collection
A161: CONTRACT NUMBER: | C161: =C1 -> CONSTRUCTION OF A NEW LAPA AND THE REFURBISHMENT OF GATE HOUSE AND ABLUTIONS, EXTERNAL AREAS AND THE INSPECTION AND WORKS TO EXISTING AND NEW SERVICES AT THE MOKOPANE BIODIVERSITY CONSERVATION CENTRE | S161: Bill
A162: =A2 -> G540/2024 | S162: =S2 -> 19
A163: ITEM | B163: PAYMENT | M163: Page No.
A164: NO | B164: REFERS | S164: AMOUNT
B165: TO
B167: =B9 -> FENCING AND GATES
B169: COLLECTION
B171: Total Brought Forward from Page No. | M171: 177
M173: =M171+1 -> 178
A236: =A158 -> BILL No. 19
B237: Bill No. 19 FENCING AND GATES carried to Summary

Sheet Bill 20- Water
A1: CONTRACT NUMBER: | C1: ='[1]Bill 1-P&G'!C1 -> CONSTRUCTION OF A NEW LAPA AND THE REFURBISHMENT OF GATE HOUSE AND ABLUTIONS, EXTERNAL AREAS AND THE INSPECTION AND WORKS TO EXISTING AND NEW SERVICES AT THE MOKOPANE BIODIVERSITY CONSERVATION CENTRE | S1: Bill
A2: ='[1]Bill 1-P&G'!A2 -> G540/2024 | S2: 20
A3: Item | B3: DESCRIPTION | Q3: RATE
A4: No. | M4: UNIT | O4: QUANTITY | S4: AMOUNT
B7: BILL NO. 20
B9: WATER RETICULATION
B11: SUPPLEMENTARY PREAMBLES
B13: uPVC pipes and fittings
B15: Exposed concrete surfaces
B17: Exposed surfaces of concrete storm water channels, cover slabs,
B18: inspection eye marker slabs, gulley tops, cleaning eye tops, catch
B19: pits, inspection chambers, etc. shall be finished smooth with plaster.
B21: Laying, backfilling, bedding, etc. of pipes
B23: Pipes shall be laid and bedded and trenches shall be carefully
B24: backfilled in accordance with manufacturers' instructions.
B26: Where no manufacturer's instructions exist pipes shall be laid in
B27: accordance with Clauses 5.1 and 5.2 of each of the following:
B29: SABS 1200 L: Medium pressure pipelines
B30: LD: Sewers
B31: LE: Storm water drainage
B33: Pipe trenches, etc shall be backfilled in accordance with Clauses
B34: 3, 5.5, 5.6, 5.7 and 7 of SABS 1200 DB: Earthworks
B35: (Pipe trenches)
B37: Pipes shall be bedded in accordance with Clauses 3.1 to 3.4.1, 5.1
B38: to 5.3 and 7 of SABS 1200 LB: Bedding (Pipes)
B40: Unless otherwise described bedding of rigid pipes shall be
B41: ClassB bedding.
B43: Bedding must be selected granular material
B44: (specify SABS 1200 LB class B material) minimum 100mm think
B45: on top and bottom of pipe compacted to 90% MDD.
B46: Selected fill blanket according to SABS 1200LB; selected fill
B47: material shall be material that has a PI not exceeding 6 and that is
B48: free from vegetation and from lumps or stone of diameter
B49: exceeding 30mm. In 150mm layers compacted to
B50: 90% MDD. Fill blanket is above the bedding and 200mm
B51: thickness. In 150mm layers compacted to 90% MDD.
B53: General
B55: Descriptions of pipes laid in and including trenches and of
B56: inspection chambers, catchpits, etc shall be deemed to include
B57: excavation, bedding, selected backfilling material, risk of collapse,
B58: working space, compaction to a minimum of
B59: 95% Mod AASHTO density in layers of 150mm and disposal of
B60: surplus material on site
B62: As-built drawings
B64: Where required, the contractor shall prepare an updated set of
B65: as-built drawings. At completion of the contract the contractor shall
B66: hand these drawings to the principal agent for reproducing onto the
B67: originals for handing over to the employer (provision for allowance of
B68: as-built drawings elsewhere)
B70: WATER RETICULATION
B72: HDPE Pipes
A74: 1 | B74: 32mm HDPE class 16 water pipes (pipes complete with couplings, | M74: m | O74: 41
B75: spigots, sockets, fittings, adapters, etc,) laid in trenches exceeding
B76: 1m not exceeding 1.5m deep including all sockets, fittings,
B77: adapters, excavation, bedding, backfilling and compaction and
B78: disposal of surplus material
A81: BILL No. 20
B82: Bill No. 20 WATER RETICULATION carried to collection
A84: CONTRACT NUMBER: | C84: =C1 -> CONSTRUCTION OF A NEW LAPA AND THE REFURBISHMENT OF GATE HOUSE AND ABLUTIONS, EXTERNAL AREAS AND THE INSPECTION AND WORKS TO EXISTING AND NEW SERVICES AT THE MOKOPANE BIODIVERSITY CONSERVATION CENTRE | S84: Bill
A85: =A2 -> G540/2024 | S85: =S2 -> 20
A86: ITEM | B86: PAYMENT | C86: DESCRIPTION | Q86: RATE
A87: NO | B87: REFERS | M87: UNIT | O87: QUANTITY | S87: AMOUNT
B88: TO
B90: Extra over HDPE Class 12 pipes for fittings
A92: 2 | B92: 32mm 45 degree bend | M92: No | O92: 8
A94: 3 | B94: 32mm 90 degree bend | M94: No | O94: 4
A96: 4 | B96: 32mm Tees | M96: No | O96: 7
A98: 5 | B98: 32mm Stop end | M98: No | O98: 4
B100: Sundries
A102: 6 | B102: 30 MPa/19mm Unreinforced concrete in thrust blocks in trenches | M102: m3 | O102: 3
B103: at bends, tees, etc including extra excavation, formwork, etc
A105: 7 | B105: Pipeline markers complete including SAPMA affiliation, pipe | M105: No | O105: 3
B106: OD & OD tolerance, wall thickness, nominal pressure, pipe class,
B107: etc. as per Engineers detail and specification
B109: Water Meter
A111: 8 | B111: Supply and install bulk water meters (PC amount R 15 000.00, | M111: No | O111: 1
B112: excluding VAT, but including delivery) (Johannesburg Water
B113: Approved) installed in valve chamber, chamber elsewhere
B114: measured, complete with all necessary fittings, bends, tees,
B115: flanges, couplings, finishes, etc. as per Engineers detail and
B116: specifications
B118: Connecting to Existing Pipelines
A120: 9 | B120: Connecting new HDPE 40mm diameter to existing water pipes | M120: No | O120: 1
B121: including all necessary fittings
B123: Connecting to new water supply points
A125: 10 | B125: Connecting new HDPE 25/32mm diameter to water pipes leading | M125: No | O125: 2
B126: into building including all necessary fittings
B128: Excavate and Build Valve Chamber
A130: 11 | B130: Excavate in compacted earth for building Valve Chamber, size | M130: No | O130: 1
B131: approximately 1235mm x 1235mm not exceeding 1000mm deep
B132: externally constructed with 230mm brick wall sides built in
B133: engineering bricks with 150mm thick 25Mpa in-situ concrete base
B134: and cover slab, fitted with 610mm x 305mm x 150mm cast iron
B135: hydrant box with lid with slotted hole for lifting key. Excavation to
B136: include all backfilling, compaction, working space, formwork,
B137: reinforcing, etc. all as per Engineers details and specifications
A139: 12 | B139: Extra over excavation in earth for pipe trenches, chambers, etc for | M139: m³ | O139: 3
B140: excavation in soft rock
B142: Gate/Isolation Valves in Chambers
B144: Resilient seal gate valves. Specifications to SABS 664
C145: Resilient seal gate valve fitted to flange adaptors
B146: 1 | C146: Clockwise closing
B147: 2 | C147: Non rising spindle
B148: 3 | C148: Anti-clockwise closing
B149: 4 | C149: A removable coupling must be provided at one
C150: side of the valve at least 500mm from the shaft.
A152: 13 | B152: 50mm Gate/Isolation Valve in chamber (chamber elsewhere | M152: No | O152: 1
B153: measured) to water main as per Engineers detail and specification
A155: 14 | B155: 50mm Non-Return Valve in chamber (chamber elsewhere measured) | M155: No | O155: 1
B156: to water main, complete including all couplings, flanges, etc. as per
B157: Engineers detail and specification
A162: =A81 -> BILL No. 20
B163: =B82 -> Bill No. 20 WATER RETICULATION carried to collection
A165: CONTRACT NUMBER: | C165: =C84 -> CONSTRUCTION OF A NEW LAPA AND THE REFURBISHMENT OF GATE HOUSE AND ABLUTIONS, EXTERNAL AREAS AND THE INSPECTION AND WORKS TO EXISTING AND NEW SERVICES AT THE MOKOPANE BIODIVERSITY CONSERVATION CENTRE | S165: Bill
A166: =A85 -> G540/2024 | S166: =S85 -> 20
A167: ITEM | B167: PAYMENT | C167: DESCRIPTION | Q167: RATE
A168: NO | B168: REFERS | M168: UNIT | O168: QUANTITY | S168: AMOUNT
B169: TO
B171: Testing
A173: 15 | B173: Provide all necessary testing apparatus, water, materials, etc. and | M173: Item | O173: 1
B174: allow for testing and chlorination of water reticulation system to the
B175: satisfaction of the Representative. All defective work shall be taken
B176: out and replaced at the Contractor's expense and the whole
B177: re-tested until found perfect
B179: BUDGETARY ALLOWANCES
B181: The following Budgetary Allowances are for work to be
B182: executed by the Main Contractor or specialist suppliers and
B183: priced at Bill rates or rates to be agreed and to be used as
B184: directed by the Principal Agent and to be deducted in whole
B185: or in part if not required
A187: 16 | B187: Provide the sum of R25 000.00 (Twenty Five Thousand Rands) | M187: Item | S187: R25,000.00
B188: for municipal connection fees
A190: 17 | B190: Provide the sum of R35 000.00 (Thirty Five Thousand Rands) for | M190: Item | S190: R35,000.00
B191: additional general work still to be designed and will/may be carried
B192: out by the contractor
A236: =A162 -> BILL No. 20
B237: =B163 -> Bill No. 20 WATER RETICULATION carried to collection
A239: CONTRACT NUMBER: | C239: =C1 -> CONSTRUCTION OF A NEW LAPA AND THE REFURBISHMENT OF GATE HOUSE AND ABLUTIONS, EXTERNAL AREAS AND THE INSPECTION AND WORKS TO EXISTING AND NEW SERVICES AT THE MOKOPANE BIODIVERSITY CONSERVATION CENTRE | S239: Bill
A240: =A2 -> G540/2024 | S240: =S2 -> 20
A241: ITEM | B241: PAYMENT | M241: Page No.
A242: NO | B242: REFERS | S242: AMOUNT
B243: TO
B245: =B9 -> WATER RETICULATION
B247: COLLECTION
B249: Total Brought Forward from Page No. | M249: 180
M251: =M249+1 -> 181
M253: =M251+1 -> 182
A310: =A81 -> BILL No. 20
B311: Bill No. 20 WATER RETICULATION carried to Summary

Sheet Bill 21- Sewer
A1: CONTRACT NUMBER: | C1: ='[1]Bill 1-P&G'!C1 -> CONSTRUCTION OF A NEW LAPA AND THE REFURBISHMENT OF GATE HOUSE AND ABLUTIONS, EXTERNAL AREAS AND THE INSPECTION AND WORKS TO EXISTING AND NEW SERVICES AT THE MOKOPANE BIODIVERSITY CONSERVATION CENTRE | S1: Bill
A2: ='[1]Bill 1-P&G'!A2 -> G540/2024 | S2: 21
A3: Item | B3: DESCRIPTION | Q3: RATE
A4: No. | M4: UNIT | O4: QUANTITY | S4: AMOUNT
B7: BILL NO. 21
B9: SEWER RETICULATION
B11: SUPPLEMENTARY PREAMBLES
B13: uPVC pipes and fittings
B15: Soil, waste pipes of 63mm diameter and greater shall have sockets
B16: and spigots with push-in type integral rubber ring joints. Bends shall
B17: be PVC-U fittings all with similar push-in type joints
B19: Exposed concrete surfaces
B21: Exposed surfaces of concrete storm water channels, cover slabs,
B22: inspection eye marker slabs, gulley tops, cleaning eye tops, catch
B23: pits, inspection chambers, etc. shall be finished smooth with plaster.
B25: Nature of ground
B27: A soils investigation has been carried out on site by the engineer
B28: and the report is available upon request. Descriptions of
B29: excavations shall be deemed to include all ground conditions
B30: classifiable as "earth" described in the above report and where
B31: conditions of a more difficult character are indicated these are
B32: separately measured
B34: Subterranean water
B36: The tenderer must acquaint himself of the presence and depth of
B37: subterranean water and allow therefore in his prices.
B39: Laying, backfilling, bedding, etc. of pipes
B41: Pipes shall be laid and bedded and trenches shall be carefully
B42: backfilled in accordance with manufacturers' instructions.
B44: Where no manufacturer's instructions exist pipes shall be laid in
B45: accordance with Clauses 5.1 and 5.2 of each of the following:
B47: SABS 1200 L: Medium pressure pipelines
B48: LD: Sewers
B49: LE: Storm water drainage
B51: Pipe trenches, etc shall be backfilled in accordance with Clauses
B52: 3, 5.5, 5.6, 5.7 and 7 of SABS 1200 DB: Earthworks
B53: (Pipe trenches) Pipes shall be bedded in accordance with
B54: Clauses 3.1 to 3.4.1, 5.1 to 5.3 and 7 of SABS 1200 LB: Bedding
B55: (Pipes) Unless otherwise described bedding of rigid pipes shall be
B56: Class B bedding.
B58: Bedding must be selected granular material
B59: (specify SABS 1200 LB class B material) minimum 100mm think
B60: on top and bottom of pipe compacted to 90% MDD. Selected
B61: fill blanket according to SABS 1200LB; selected fill material
B62: shall be material that has a PI not exceeding 6 and that is free
B63: from vegetation and from lumps or stone of diameter exceeding
B64: 30mm. In 150mm layers compacted to 90% MDD.Fill blanket is
B65: above the bedding and 200mm thickness. In 150mm layers
B66: compacted to 90% MDD.
B68: General
B70: Descriptions of pipes laid in and including trenches and of
B71: inspection chambers, catchpits, etc shall be deemed to include
B72: excavation, bedding, selected backfilling material, risk of collapse,
B73: working space, compaction to a minimum of 95% MDD
B74: density in layers of 150mm and disposal of surplus material on site
A82: BILL No. 21
B83: Bill No. 21 SEWER RETICULATION carried to collection
A85: CONTRACT NUMBER: | C85: =C1 -> CONSTRUCTION OF A NEW LAPA AND THE REFURBISHMENT OF GATE HOUSE AND ABLUTIONS, EXTERNAL AREAS AND THE INSPECTION AND WORKS TO EXISTING AND NEW SERVICES AT THE MOKOPANE BIODIVERSITY CONSERVATION CENTRE | S85: Bill
A86: =A2 -> G540/2024 | S86: =S2 -> 21
A87: ITEM | B87: PAYMENT | C87: DESCRIPTION | Q87: RATE
A88: NO | B88: REFERS | M88: UNIT | O88: QUANTITY | S88: AMOUNT
B89: TO
B91: As-built drawings
B93: Where required, the contractor shall prepare an updated set of
B94: drawings. At completion of the contract the contractor shall hand
B95: these as-built drawings to the principal agent for reproducing onto
B96: the originals for handing over to the employer (provision for
B97: allowance of as-built drawings elsewhere)
B99: SOIL DRAINAGE
B101: uPVC Class 34 pipes with socketed joints
A103: 1 | B103: 110mm uPVC Class 34 sewer drainage pipes (pipes complete with | M103: m | O103: 77
B104: couplings, spigots, sockets, fittings, adapters, etc,) laid in trenches
B105: not exceeding 1000m deep including all sockets, fittings, adapters,
B106: dpc, excavation, bedding, stone filling, backfilling and compaction
B107: and disposal of surplus material
A109: 2 | B109: Ditto,but exceeding 1000mm not exceeding 2000mm deep including | M109: m | O109: 39
B110: all sockets, fittings, adapters, excavation, bedding, backfilling and
B111: compaction and disposal of surplus material
A113: 3 | B113: Ditto, but exceeding 2000mm not exceeding 3000mm deep | M113: m | O113: 39
B114: including all sockets, fittings, adapters, excavation, bedding,
B115: backfilling and compaction and disposal of surplus material
B117: Extra over uPVC Class 34 pipes for fittings in trenches
A119: 4 | B119: 110mm Bend | M119: No | O119: 31
A121: 5 | B121: 110mm Junction | M121: No | O121: 6
A123: 6 | B123: 110 x 75m Reducing junction | M123: No | O123: 5
B125: Excavate and Build Manholes
A127: 7 | B127: Excavate in compacted earth for and build pre-cast concrete | M127: No | O127: 1
B128: manhole with 560mm diameter Class B125 Polyester Resin or
B129: Type 4 concrete manhole cover and frame. Manhole with 1000mm
B130: internal diameter shaft with 75mm reinforced concrete wall spacer
B131: rings internally, 1110 x 1110mm x minimum 150mm thick cast in-situ
B132: concrete slab 25MPa with reinforcement, HDPE steps 300c/c
B133: vertical and horizontal, 20mm Dolomitic steel floated benching to
B134: top of concrete base, 25MPa concrete haunching 100mm wide,
B135: including leaving or forming opening in precast concrete wall for
B136: 150mm diameter outlets including all excavations, backfilling,
B137: compaction, working space, de-watering, risk of collapse,
B138: formwork, formwork, reinforcing, etc. not exceeding 1500 mm deep.
A140: 8 | B140: Ditto, but exceeding 1500mm and not exceeding 2000mm deep | M140: No | O140: 1
A142: 9 | B142: Ditto, but exceeding 2000mm and not exceeding 2500mm deep | M142: No | O142: 1
A144: 10 | B144: Ditto, but exceeding 2500mm and not exceeding 3000mm deep | M144: No | O144: 1
A146: 11 | B146: Extra over excavation in earth for pipe trenches, chambers, etc | M146: m³ | O146: 1
B147: for excavation in soft rock
B149: Municipal Connection
A151: 12 | B151: Excavate, carefully create opening in existing sewer manhole | M151: No | O151: 1
B152: exceeding 3000mm not exceeding 4000mm deep, connect new
B153: sewer pipe with fittings and make good
B155: Septic Tank Connection
A157: 13 | B157: Carefully open up existing septic tank, connect new sewer pipe with | M157: No | O157: 1
B158: fittings and make good
A168: =A82 -> BILL No. 21
B169: =B83 -> Bill No. 21 SEWER RETICULATION carried to collection
A171: CONTRACT NUMBER: | C171: =C85 -> CONSTRUCTION OF A NEW LAPA AND THE REFURBISHMENT OF GATE HOUSE AND ABLUTIONS, EXTERNAL AREAS AND THE INSPECTION AND WORKS TO EXISTING AND NEW SERVICES AT THE MOKOPANE BIODIVERSITY CONSERVATION CENTRE | S171: Bill
A172: =A86 -> G540/2024 | S172: =S86 -> 21
A173: ITEM | B173: PAYMENT | C173: DESCRIPTION | Q173: RATE
A174: NO | B174: REFERS | M174: UNIT | O174: QUANTITY | S174: AMOUNT
B175: TO
B177: Sundries
A179: 14 | B179: Unreinforced concrete encasement of pipes (25MPa) | M179: m³ | O179: 6
A181: 15 | B181: Provide all necessary testing apparatus, water, materials, etc. and | M181: Item | O181: 1
B182: allow for testing of drainage system to the satisfaction of the
B183: Representative. All defective work shall be taken out and replaced at
B184: the Contractor's expense and the whole re-tested until found perfect
B186: BUDGETARY ALLOWANCES
B188: The following Budgetary Allowances are for work to be
B189: executed by Main Contractor or specialist suppliers and
B190: priced at Bill rates or the rates to be agreed and to be used
B191: as directed by the Principal Agent and to be deducted in
B192: whole or in part if not required
A194: 16 | B194: Provide the sum of R25 000.00 (Twenty Five Thousand Rand) for | M194: Item | S194: R25,000.00
B195: decommissioning of existing septic tank and sewer line
A197: 17 | B197: Provide the sum of R50 000.00 (Fifty Thousand Rands) for | M197: Item | S197: R50,000.00
B198: municipal connection fees
A200: 18 | B200: Provide the sum of R75 000.00 (Seventy Five Thousand Rands) for | M200: Item | S200: R75,000.00
B201: additional general work still to be designed and will/may be carried
B202: out by the contractor
A242: =A168 -> BILL No. 21
B243: =B169 -> Bill No. 21 SEWER RETICULATION carried to collection
A245: CONTRACT NUMBER: | C245: =C1 -> CONSTRUCTION OF A NEW LAPA AND THE REFURBISHMENT OF GATE HOUSE AND ABLUTIONS, EXTERNAL AREAS AND THE INSPECTION AND WORKS TO EXISTING AND NEW SERVICES AT THE MOKOPANE BIODIVERSITY CONSERVATION CENTRE | S245: Bill
A246: =A2 -> G540/2024 | S246: 21
A247: ITEM | B247: PAYMENT | M247: Page No.
A248: NO | B248: REFERS | S248: AMOUNT
B249: TO
B251: =B9 -> SEWER RETICULATION
B253: COLLECTION
B255: Total Brought Forward from Page No. | M255: 184
M257: =M255+1 -> 185
M259: =M257+1 -> 186
A316: =A82 -> BILL No. 21
B317: Bill No. 21 SEWER RETICULATION carried to Summary

Sheet Bill 22- Stormwater
A1: CONTRACT NUMBER: | C1: ='[1]Bill 1-P&G'!C1 -> CONSTRUCTION OF A NEW LAPA AND THE REFURBISHMENT OF GATE HOUSE AND ABLUTIONS, EXTERNAL AREAS AND THE INSPECTION AND WORKS TO EXISTING AND NEW SERVICES AT THE MOKOPANE BIODIVERSITY CONSERVATION CENTRE | S1: Bill
A2: ='[1]Bill 1-P&G'!A2 -> G540/2024 | S2: 22
A3: Item | B3: DESCRIPTION | Q3: RATE
A4: No. | M4: UNIT | O4: QUANTITY | S4: AMOUNT
B7: BILL NO. 22
B9: STORMWATER DRAINAGE, SUB-SOIL DRAINAGE
B11: SUPPLEMENTARY PREAMBLES
B13: Concrete pipes: interlocking joints
B15: Pipes shall be jointed with interlocking joints with rubber collars or
B16: socket and spigot joints with rubber rings.
B18: uPVC pipes and fittings
B20: Soil, waste pipes of 63mm diameter and greater shall have
B21: sockets and spigots with push-in type integral rubber ring joints.
B22: Bends shall be PVC-U fittings all with similar push-in type joints
B24: Exposed concrete surfaces
B26: Exposed surfaces of concrete storm water channels, cover slabs,
B27: inspection eye marker slabs, gulley tops, cleaning eye tops, catch
B28: pits, inspection chambers, etc. shall be finished smooth with plaster.
B30: Nature of ground
B32: A soils investigation has been carried out on site by the engineer
B33: and the report is available upon request. Descriptions of
B34: excavations shall be deemed to include all ground conditions
B35: classifiable as earth described in the above report and where
B36: conditions of a more difficult character are indicated these are
B37: separately measured
B39: Subterranean water
B41: The tenderer must acquaint himself of the presence and depth of s
B42: ubterranean water and allow therefore in his prices.
B44: Laying, backfilling, bedding, etc. of pipes
B46: Pipes shall be laid and bedded and trenches shall be carefully
B47: backfilled in accordance with manufacturers' instructions.
B49: Where no manufacturer's instructions exist pipes shall be laid in
B50: accordance with Clauses 5.1 and 5.2 of each of the following:
B52: SABS 1200 L: Medium pressure pipelines
B53: LD: Sewers
B54: LE: Storm water drainage
B56: Pipe trenches, etc shall be backfilled in accordance with Clauses
B57: 3, 5.5, 5.6, 5.7 and 7 of SABS 1200 DB: Earthworks
B58: (Pipe trenches)
B60: Pipes shall be bedded in accordance with Clauses 3.1 to 3.4.1, 5.1
B61: to 5.3 and 7 of SABS 1200 LB: Bedding (Pipes)
B63: Unless otherwise described bedding of rigid pipes shall be
B64: Class B bedding.
B66: Selected granular bedding and cradle material in 150mm layers
B67: 100 mm below pipe and 200mm above the pipe, compacted to
B68: 90% MDD.
B70: Selected backfill blanket is above the bedding in 150mm layers
B71: compacted to 90% MDD.
B73: Approved backfill 150mm layers compacted to 90% MDD.
A81: BILL No. 22
B82: Bill No. 14 STORMWATER DRAINAGE, SUB-SOIL DRAINAGE carried to collection
A84: CONTRACT NUMBER: | C84: =C1 -> CONSTRUCTION OF A NEW LAPA AND THE REFURBISHMENT OF GATE HOUSE AND ABLUTIONS, EXTERNAL AREAS AND THE INSPECTION AND WORKS TO EXISTING AND NEW SERVICES AT THE MOKOPANE BIODIVERSITY CONSERVATION CENTRE | S84: Bill
A85: =A2 -> G540/2024 | S85: =S2 -> 22
A86: ITEM | B86: PAYMENT | C86: DESCRIPTION | Q86: RATE
A87: NO | B87: REFERS | M87: UNIT | O87: QUANTITY | S87: AMOUNT
B88: TO
B90: General
B92: Descriptions of pipes laid in and including trenches and of
B93: inspection chambers, catchpits, etc shall be deemed to include
B94: excavation, bedding, selected backfilling material, risk of collapse,
B95: working space, compaction to a minimum of 95% MDD
B96: density in layers of 150mm and disposal of surplus material on site
B98: As-built drawings
B100: Where required, the contractor shall prepare an updated set of
B101: as-built drawings. At completion of the contract the contractor
B102: shall hand these drawings to the principal agent for reproducing
B103: onto the originals for handing over to the employer (provision for
B104: allowance of as-built drawings elsewhere)
B106: STORM WATER DRAINAGE
B108: Concrete Stormwater Channel
A110: 1 | B110: 25Mpa/19mm V shaped concrete drainage channel 100mm thick | M110: m | O110: 18
B111: with overall canal size 600mm wide x 50mm deep finished smooth
B112: on all exposed surfaces to a uniform dense finish with closed cell
B113: expanded polyethylene filler and polyurethane sealant expansion
B114: joints at 2m centres, 150mm bottom layer to be ripped and
B115: re-compacted to 93% MDD, 150mm top layer
B116: of G5 imported material to 95% MDD
B117: including all necessary excavation, backfilling, carting away,
B118: cutting into paving, formwork, reinforcement, dowels, etc..
B119: Channels including slopes, overall shape etc. as per engineers
B120: drawings
A122: 2 | B122: 25Mpa/19mm Trapezium shaped concrete drainage channel | M122: m | O122: 80
B123: 125mm thick with overall canal size 600mm wide x 250mm deep
B124: finished smooth on all exposed surfaces with a steel float to a
B125: uniform dense finish with closed cell expanded polyethylene filler
B126: and polyurethane sealant expansion joints at 1.8m centres,
B127: 150mm bottom layer to be ripped and re-compacted to 93% MDD,
B128: 150mm top layer of G5 imported material to 93% MDD including
B129: all necessary excavation, backfilling, carting away, cutting into
B130: paving, formwork, reinforcement dowels, etc.. Channels including
B131: slopes, overall shape etc. as per engineers drawings
A133: 3 | B133: 25Mpa/19mm U shaped concrete drainage channel 200mm thick
B134: with overall canal size 600mm wide x 300mm deep finished | M134: m | O134: 24
B135: smooth on all exposed surfaces with a steel float to a uniform
B136: dense finish with closed cell expanded polyethylene filler and
B137: polyurethane sealant expansion joints at 1.8m centres, 150mm
B138: bottom layer to be ripped and re-compacted to 93% MDD,
B139: 150mm top layer of G5 imported material to 93% MDD including
B140: all necessary excavation, backfilling, carting away, cutting into
B141: paving, formwork, reinforcing, dowels, etc.
B143: Stone pitched Stormwater Channel
A145: 4 | B145: 19mm Compacted stone V shaped drainage channel 200mm thick | M145: m | O145: 126
B146: with 1:3 slope, 150mm bottom layer to be ripped and
B147: re-compacted to 93% MDD, 150mm top layer
B148: of G5 imported material to 95% MDD including all necessary
B149: excavation, backfilling, carting away, cutting into paving, mortar etc.
B150: Channels including slopes, overall shape etc. as per engineers
B151: drawings
A153: 5 | B153: Bidim A4 or similar and approved geofabric filter blanket of 2,1mm | M153: m² | O153: 151
B154: thickness under 2kPa with 150mm side and 300mm end laps
B155: including stitching over compacted surface underneath compacted stone
B156: (stone measured elsewhere)
A163: =A81 -> BILL No. 22
B164: =B82 -> Bill No. 14 STORMWATER DRAINAGE, SUB-SOIL DRAINAGE carried to collection
A166: CONTRACT NUMBER: | C166: =C84 -> CONSTRUCTION OF A NEW LAPA AND THE REFURBISHMENT OF GATE HOUSE AND ABLUTIONS, EXTERNAL AREAS AND THE INSPECTION AND WORKS TO EXISTING AND NEW SERVICES AT THE MOKOPANE BIODIVERSITY CONSERVATION CENTRE | S166: Bill
A167: =A85 -> G540/2024 | S167: =S85 -> 22
A168: ITEM | B168: PAYMENT | C168: DESCRIPTION | Q168: RATE
A169: NO | B169: REFERS | M169: UNIT | O169: QUANTITY | S169: AMOUNT
B170: TO
B172: Sundries
A174: 6 | B174: Extra over channel for 90 degree angle | M174: No | O174: 24
A176: 7 | B176: Extra over channel for forming of 20MPA concrete silt trap size | M176: No | O176: 1
B177: 300 x 200mm high in channel including class B grate, all
B178: necessary formwork, reinforcing etc.
A180: 8 | B180: Extra over channel for closed end | M180: No | O180: 6
A182: 9 | B182: Extra over channel for open end into catchpit (catchpit elsewhere | M182: No | O182: 6
B183: measured)
A185: 10 | B185: Extra over channel for Rectagrid RS40 or similar and approved | M185: No | O185: 10
B186: grating size 640 x 2560mm with closed ends and 60 x 4,5mm
B187: bearer bars, laid on loose on and including 25 x 5 x 5mm thick
B188: mild steel angle iron with 100mm anchors embedded in concrete
B190: Rocla or similar and approved Concrete Pipes
B192: Supply, handle, lay, joint, precast concrete pipe complete with
B193: spigots & socket with rubber ring seal, etc, and bed pipes on class
B194: A/B rigid pipe bedding compacted to 90% MDD, etc. all
B195: as per Engineers detail and specifications
A197: 11 | B197: 375mm Diameter class 75D pre-cast concrete pipe laid in | M197: m | O197: 6
B198: trenches not exceeding 1m deep, including excavation, bedding,
B199: backfilling and compaction and disposal of surplus material
A201: 12 | B201: Ditto exceeding 1m but not exceeding 2m deep | M201: m | O201: 4
A203: 13 | B203: Ditto exceeding 2m but not exceeding 3m deep | M203: m | O203: 4
A205: 14 | B205: 450mm Diameter class 100D pre-cast concrete pipe laid in | M205: m | O205: 35
B206: trenches not exceeding 1m deep, including excavation, bedding,
B207: backfilling and compaction and disposal of surplus material
A209: 15 | B209: Ditto exceeding 1m but not exceeding 2m deep | M209: m | O209: 22
A211: 16 | B211: Ditto exceeding 2m but not exceeding 3m deep | M211: m | O211: 31
B213: Excavate and Build Manholes, Kerb Inlets, etc.
A215: 17 | B215: Excavate in compacted earth for building up manhole/kerb inlet, | M215: No | O215: 1
B216: size approximately 1600 x 1750 not exceeding 1m deep internally
B217: with 220mm brick wall sides in engineering bricks built on and
B218: including 175mm thick, 25Mpa in-situ concrete base with ref. 888
B219: mesh reinforcement, on 1:5 cement mortar, benching to bottom in
B220: 187.5mm thick 15Mpa concrete finished off smooth with a steel
B221: trowel and fitted with & including 25Mpa reinforced concrete roof
B222: slab and 600mm diameter heavy duty type 2A manhole cover and
B223: frame, frame cast into concrete surround with step irons to SABS
B224: 1247 fixed to brickwork at 300c/c including leaving or forming
B225: opening in brickwork for 2No. 375mm diameter outlets including
B226: all excavations, backfilling, formwork, de-watering, risk of collapse
B227: , reinforcing, etc. all as per engineers detail and specification
A229: 18 | B229: Ditto exceeding 2m but not exceeding 3m deep | M229: No | O229: 1
A241: =A163 -> BILL No. 22
B242: =B164 -> Bill No. 14 STORMWATER DRAINAGE, SUB-SOIL DRAINAGE carried to collection
A244: CONTRACT NUMBER: | C244: =C166 -> CONSTRUCTION OF A NEW LAPA AND THE REFURBISHMENT OF GATE HOUSE AND ABLUTIONS, EXTERNAL AREAS AND THE INSPECTION AND WORKS TO EXISTING AND NEW SERVICES AT THE MOKOPANE BIODIVERSITY CONSERVATION CENTRE | S244: Bill
A245: =A167 -> G540/2024 | S245: =S167 -> 22
A246: ITEM | B246: PAYMENT | C246: DESCRIPTION | Q246: RATE
A247: NO | B247: REFERS | M247: UNIT | O247: QUANTITY | S247: AMOUNT
B248: TO
B250: Excavate and Build Catchpits and grid inlets
A252: 19 | B252: Excavate in compacted earth for building up grid inlet, size | M252: No | O252: 1
B253: approximately 1800 x 1800mm not exceeding 1m deep internally
B254: with 230mm brick wall sides in engineering bricks built on and
B255: including 150mm thick, 25Mpa in-situ concrete base with
B256: ref. 245 mesh reinforcement, on 1:5 cement mortar, benching to
B257: bottom in 15Mpa concrete finished off smooth with a steel trowel
B258: and fitted with & including 25Mpa reinforced (mesh ref. 395)
B259: concrete dished cover slab approximately 1800 x 1600mm
B260: finished with steel trowel, including 520 x 790mm heavy duty
B261: grating and frame, frame cast into 1:10 sloping reinforced
B262: concrete surround with step irons to SABS 1247 fixed to brickwork
B263: at 300c/c including leaving or forming opening in brickwork for
B264: 2No. 375/450mm diameter outlets including all excavations,
B265: backfilling, de-watering, risk of collapse, formwork, reinforcing, etc.
B266: all as per engineers detail and specification
A268: 20 | B268: Ditto exceeding 1m but not exceeding 2m deep | M268: No | O268: 1
B270: BUDGETARY ALLOWANCES
B272: The following Budgetary Allowances are for work to be executed
B273: by the Main Contractor or specialist suppliers and priced at Bill
B274: rates or rates to be agreed and to be used as directed by the
B275: Principal Agent and to be deducted in whole or in part if not
B276: required
A278: 21 | B278: Provide the sum of R50 000.00 (Fifty Thousand Rands) | M278: Item | S278: R50,000.00
B279: for municipal connection fees
A281: 22 | B281: Provide the sum of R50 000.00 (Fifty Thousand Rands) for | M281: Item | S281: R50,000.00
B282: additional general work still to be designed and will/may be carried
B283: out by the contractor
A315: =A241 -> BILL No. 22
B316: =B242 -> Bill No. 14 STORMWATER DRAINAGE, SUB-SOIL DRAINAGE carried to collection
A318: CONTRACT NUMBER: | C318: =C244 -> CONSTRUCTION OF A NEW LAPA AND THE REFURBISHMENT OF GATE HOUSE AND ABLUTIONS, EXTERNAL AREAS AND THE INSPECTION AND WORKS TO EXISTING AND NEW SERVICES AT THE MOKOPANE BIODIVERSITY CONSERVATION CENTRE | S318: Bill
A319: =A245 -> G540/2024 | S319: =S245 -> 22
... 11 more rows

Sheet Bill 23- Furniture
A1: CONTRACT NUMBER: | C1: ='[1]Bill 1-P&G'!C1 -> CONSTRUCTION OF A NEW LAPA AND THE REFURBISHMENT OF GATE HOUSE AND ABLUTIONS, EXTERNAL AREAS AND THE INSPECTION AND WORKS TO EXISTING AND NEW SERVICES AT THE MOKOPANE BIODIVERSITY CONSERVATION CENTRE | S1: Bill
A2: ='[1]Bill 1-P&G'!A2 -> G540/2024 | S2: 23
A3: Item | B3: DESCRIPTION | Q3: RATE
A4: No. | M4: UNIT | O4: QUANTITY | S4: AMOUNT
B7: BILL NO. 23
B9: STREET FURNITURE
B11: Supply and install furniture
B13: Recycled Plastic Benches
A15: 1 | B15: 3 Seater 1500mm x 700mm width (RP95) Gloria Bench | M15: No | O15: 10
B16: or similar and approved
B18: Monkey Proof Recycled Plastic bins
A20: 2 | B20: 540 x 540 x 850mm self standing Monkey proof Eco bin with | M20: No | O20: 8
B21: rotating lid or similar and approved
B23: Timber Bollards
A25: 3 | B25: Tanalith (CCA) or similar and approved treated H4 timber bollard | M25: No | O25: 12
B26: timber bollard 170mm in diameter, 1000mm high fixed into
B27: 350 x 350 x 350mm base including all excavations, concrete,
B28: carting away, reinforcing connections holding down bolts,
B29: screws, plates etc. all in accordance with manufacturers,
B30: architect's and engineers Specifications
A81: BILL No. 23
B82: Bill No. 23 STREET FURNITURE carried to Summary

Sheet Bill 24- Electrical
A1: CONTRACT NUMBER: | C1: ='Bill 1-P&G'!C1:R2 -> CONSTRUCTION OF A NEW LAPA AND THE REFURBISHMENT OF GATE HOUSE AND ABLUTIONS, EXTERNAL AREAS AND THE INSPECTION AND WORKS TO EXISTING AND NEW SERVICES AT THE MOKOPANE BIODIVERSITY CONSERVATION CENTRE | S1: Bill
A2: ='Bill 1-P&G'!A2:B2 -> G540/2024 | S2: 24
A3: Item | B3: DESCRIPTION | Q3: RATE
A4: No. | M4: UNIT | O4: QUANTITY | S4: AMOUNT
B7: BILL NO. 24
B9: ELECTRICAL
B11: LOW VOLTAGE CABLES
B13: Supply and install PVC insulated PVC bedded SWA PVC
B14: sheathed 600/1000 V cables manufactured to SANS 1507-3
B15: including BCEW strapped to cable.
A17: 1 | B17: 16mm² Cu x 3 core cable (From new main distribution kiosk to
B18: new Lapa distribution board) | M18: m | O18: 100
B20: Supply and install termination kits PVC insulated PVC
B21: bedded SWA PVC sheathed 600/1000 V cables, including
B22: glands, shrouds, lugs and bi-metal lugs for Al cables.
A24: 2 | B24: 16mm² Cu x 3 core cable (No.2 gland) | M24: No. | O24: 2
B26: CABLE ROUTE MARKER TAPE
A28: 3 | B28: Supply and install cable route marker tape | M28: m | O28: 100
B30: EXCAVATIONS & ROAD CROSSINGS
A32: 4 | B32: Excavate and back fill cable trench, including bedding material | M32: m3 | O32: 30
B33: sifted on site from excavated material.(0,5m wide x 0,6m deep).
B34: Reinstate paving and ground to original condition.
A36: 5 | B36: Supply and install black Ø110mm nextube sleeve pipes for road | M36: m | O36: 20
B37: crossings including all bends and couplings required for the
B38: installation.
A40: 6 | B40: Supply and install distribution kiosk as specified on drawing | M40: No. | O40: 1
B41: 34398-02-392-05-01. Including all labels, padlocks,
B42: disconnecting of existing cables, removing existing distribution
B43: kiosk and place in designated place on site. Install new kiosk
B44: and reconnect all existing cables.
A46: 7 | B46: Supply and install earth mat for distribution kiosks. | M46: No. | O46: 3
B47: 16mm² BCEW + 1.8m earthing electrodes)
A49: 8 | B49: Test, identify and label cables installed in new Entrance Main | M49: No. | O49: 1
B50: Distribution Kiosk and issue COC.
B52: EXTERNAL LUMINAIRES
B54: Supply and install the following luminaires suspended 4.6m
B55: above the entrance and exist road of the gate house with
B56: 2.5mm² PVC insulated conductors and 2.5mm² PVC
B57: insulated earth wire. Avg supply length of 20m.
A59: 9 | B59: Beka EcoBay or similar and approved 146W with clear glass 4011 optic | M59: No. | O59: 4
B60: and aluminium finish - 4000K IP66 rated or similar. Including all
B61: accessories to be suspended.
A63: 10 | B63: Supply and install Beka Focus 26W 4000K LED IP66 signage | M63: No. | O63: 2
B64: luminaire including earthspike for mounting or similar. Complete
B65: with all accessories to complete installation excluding the cable.
B66: Cable measured elsewhere.
A68: 11 | B68: Supply and install vandal proof steel cage around Beka Focus | M68: No. | O68: 1
B69: luminaires, with lockable gate. Including padlock and
B70: accessories to complete the installation.
A80: BILL No. 24
B81: Bill No. 24 ELECTRICAL carried to collection
A83: CONTRACT NUMBER: | C83: =C1 -> CONSTRUCTION OF A NEW LAPA AND THE REFURBISHMENT OF GATE HOUSE AND ABLUTIONS, EXTERNAL AREAS AND THE INSPECTION AND WORKS TO EXISTING AND NEW SERVICES AT THE MOKOPANE BIODIVERSITY CONSERVATION CENTRE | S83: Bill
A84: =A2 -> G540/2024 | S84: =S2 -> 24
A85: ITEM | B85: PAYMENT | C85: DESCRIPTION | Q85: RATE
A86: NO | B86: REFERS | M86: UNIT | O86: QUANTITY | S86: AMOUNT
B87: TO
B89: LOW VOLTAGE CABLES
B91: Supply and install PVC insulated PVC bedded SWA PVC
B92: sheathed 600/1000 V cables manufactured to SANS 1507-3
B93: including BCEW strapped to cable.
A95: 12 | B95: 2.5mm² Cu x 3 core cable (From existing gate house | M95: m | O95: 40
B96: distribution board to Beka Focus signage luminaires).
B97: Complete with pratley boxes.
B99: Supply and install termination kits PVC insulated PVC
B100: bedded SWA PVC sheathed 600/1000 V cables, including
B101: glands, shrouds, lugs and bi-metal lugs for Al cables.
A103: 13 | B103: 2.5mm² Cu x 3 core cable (No.0 gland) | M103: No. | O103: 2
B105: LUMINAIRES SWITCHING
A107: 14 | B107: Supply and install 20amp 3kA circuit breaker inside existing | M107: No. | O107: 3
B108: Gate House DB with 2 x 2.5mm² PVC insulated conductors
B109: and 2.5mm² PVC insulated earth wire. Supply length of 20m to
B110: photocells (day/night switch)
B112: CIRCUIT BREAKER
A114: 15 | B114: Supply and install 16 amp photocell (daylight switch) on outside | M114: No. | O114: 1
B115: wall with 2 x 2.5mm2 PVC insulated conductors and 2.5mm2
B116: PVC insulated earth wire. Supply length of 20m.
B118: TESTING
A120: 16 | B120: Testing and commisioning of installation and issue of COC | M120: No. | O120: 1
B122: ELECTRICAL CONDUIT
A124: 17 | B124: Supply and install Ø25mm Galvanised Steel conduit, including | M124: m | O124: 120
B125: all couplings, loop/inspection boxes, plugs, fixing saddles
B126: (hospital saddles) and screws, cutting bending, fixing, cleaning
B127: for wiring purposes cast in concrete, in brickwork or on surface.
B128: To Include all chasing into brickwork, making good of the walls
B129: and draw wire.
A131: 18 | B131: Supply and install Ø25mm PVC conduit, including all couplings, | M131: m | O131: 40
B132: loop/inspection boxes, plugs, fixing saddles and screws,
B133: cutting bending, fixing, cleaning for wiring purposes cast in
B134: concrete, in brickwork or on surface. To Include all chasing into
B135: brickwork and making good of the walls.
B137: EXISITNG ELECTRICAL INSTALLATION
A139: 19 | B139: Disconnect and remove exisitng lighting installation and store in | M139: Sum | O139: 1
B140: designated space provided on site. Inspect and test socket
B141: outlets and geyser isolator installation. (Existing installation
B142: consist of 6luminaires and 2 handdryers)
B144: DISTRIBUTION BOARD
A146: 20 | B146: Provisional sum for distribution board refurbishment. | M146: No. | O146: 1
B148: GEYSER SUPPLY
A150: 21 | B150: Supply and install Crabtree Classic Range or similar and approved | M150: No. | O150: 1
B151: 30A double pole isolator switch in surface mounted 4 x 4 box next to
B152: geyser including yoke and cover plate with 2 x 4mm² PVC
B153: insulated conductors and 4mm² PVC insulated earth wire. Supply
B154: length of 6m to geyser. (Colour of switch: White)
A164: =A80 -> BILL No. 24
B165: =B81 -> Bill No. 24 ELECTRICAL carried to collection
A167: CONTRACT NUMBER: | C167: =C83 -> CONSTRUCTION OF A NEW LAPA AND THE REFURBISHMENT OF GATE HOUSE AND ABLUTIONS, EXTERNAL AREAS AND THE INSPECTION AND WORKS TO EXISTING AND NEW SERVICES AT THE MOKOPANE BIODIVERSITY CONSERVATION CENTRE | S167: Bill
A168: =A84 -> G540/2024 | S168: =S84 -> 24
A169: ITEM | B169: PAYMENT | C169: DESCRIPTION | Q169: RATE
A170: NO | B170: REFERS | M170: UNIT | O170: QUANTITY | S170: AMOUNT
B171: TO
B173: HAND DRYER SUPPLY
A175: 22 | B175: Supply and install Crabtree Classic Range or similar and approved | M175: No. | O175: 3
B176: 30A double pole isolator switch in flush mounted 4 x 4 box, 300mm
B177: from ceiling above the hand dryer, including yoke and cover plate
B178: with 2 x 4mm² PVC insulated conductors and 4mm² PVC insulated
B179: earth wire. Supply length of 15m to each hand dryer.
B180: (Colour of switch: White)
B182: EXTERNAL LUMINARIES
B184: Supply and install the following luminaires suspended 4.6m
B185: above the entrance and exist road of the gate house with
B186: 2.5mm² PVC insulated conductors and 2.5mm² PVC insulated
B187: earth wire. Avg supply length of 10m.
A189: 23 | B189: Lascon C10 / 24W LED tridonic / 6080LM / photo engrave | M189: No. | O189: 7
B190: lense - 4000K IP65 rated or similar and approved. Including all
B191: accessories to be suspended
A193: 24 | B193: Lascon C10 / 24W LED tridonic / 6080LM / photo engrave | M193: No. | O193: 3
B194: lense - 4000K IP65 rated or similar approved.Including all
B195: accessories to be fitted under roof steel beam.
B197: LOW VOLTAGE CABLES
B199: Supply and install PVC insulated PVC bedded SWA PVC
B200: sheathed 600/1000 V cables manufactured to SANS 1507-3
B201: including BCEW strapped to cable.
A203: 25 | B203: 2.5mm² Cu x 3 core cable (From existing gate house distribution | M203: No. | O203: 45
B204: board to Beka Focus signage luminaires). Complete with pratley
B205: boxes.
A207: 26 | B207: Supply and install termination kits PVC insulated PVC bedded SWA PVC sheathed 600/1000 V cables, including glands, shrouds, lugs and bi-metal lugs for Al cables.
B212: 2.5mm² Cu x 3 core cable (No.0 gland) | M212: No. | O212: 2
B214: CABLE ROUTE MARKER TAPE
A216: 27 | B216: Supply and install cable route marker tap | M216: m | O216: 40
B218: EXCAVATIONS & ROAD CROSSINGS
A220: 28 | B220: Excavate and back fill cable trench, including bedding material | M220: m3 | O220: 15
B221: sifted on site from excavated material.(0,5m wide x 0,6m deep).
B222: Reinstate paving and ground to original condition.
B224: LUMINAIRES SWITCHING
A226: 29 | B226: Supply and install Crabtree Classic Range or similar and approved | M226: No. | O226: 3
B227: one lever one way 20A light switch in surface mounted 2 x 4 box,
B228: 1200mm from AFFL, including yoke and cover plate with
B229: 2 x 2.5mm² PVC insulatedconductors and 2.5mm² PVC insulated
B230: earth wire. Supply length of 10m to each light switch.
A232: 30 | B232: Supply and install 16amp photocell (day/night switch) on outside | M232: No. | O232: 2
B233: wall with 2 x 2.5mm² PVC insulated conductors and 2.5mm²
B234: PVC insulated earth wire. Supply length of 20m.
B236: TESTING
A238: 31 | B238: Testing and commisioning of installation and issue of COC | M238: No. | O238: 1
B240: ELECTRICAL CONDUIT
A242: 32 | B242: Supply and install Ø25mm Galvanised Steel conduit, including | M242: m | O242: 80
B243: all couplings, loop/inspection boxes, plugs, fixing saddles
B244: (hospital saddles) and screws, cutting bending, fixing, cleaning
B245: for wiring purposes cast in concrete, in brickwork or on surface.
B246: To Include all chasing into brickwork, making good of the walls
B247: and draw wire.
A249: =A164 -> BILL No. 24
B250: =B165 -> Bill No. 24 ELECTRICAL carried to collection
A252: CONTRACT NUMBER: | C252: =C167 -> CONSTRUCTION OF A NEW LAPA AND THE REFURBISHMENT OF GATE HOUSE AND ABLUTIONS, EXTERNAL AREAS AND THE INSPECTION AND WORKS TO EXISTING AND NEW SERVICES AT THE MOKOPANE BIODIVERSITY CONSERVATION CENTRE | S252: Bill
A253: =A168 -> G540/2024 | S253: =S168 -> 24
A254: ITEM | B254: PAYMENT | C254: DESCRIPTION | Q254: RATE
A255: NO | B255: REFERS | M255: UNIT | O255: QUANTITY | S255: AMOUNT
B256: TO
A258: 33 | B258: Supply and install Ø25mm PVC conduit, including all couplings, | M258: m | O258: 25
B259: loop/inspection boxes, plugs, fixing saddles and screws, cutting
B260: bending, fixing, cleaning for wiring purposes cast in concrete,
B261: in brickwork or on surface. To Include all chasing into brickwork
B262: and making good of the Walls.
B264: SLEEVES
A266: 34 | B266: Supply and install Ø50mm nextube sleeve pipe with slow bend | M266: m | O266: 10
B268: DISTRIBUTION BOARD
A270: 35 | B270: Supply and install flush mounted distribution board as specified | M270: No. | O270: 1
B271: on drawing. Including all lables and padlock.
B273: GEYSER SUPPLY
A275: 36 | B275: Supply and install Crabtree Classic Range or similar and approved | M275: No. | O275: 1
B276: 30A double pole isolator switch in surface mounted 4 x 4 box next to
B277: geyser including yoke and cover plate with 2 x 4mm² PVC insulated
B278: conductors and 4mm² PVC insulated earth wire. Supply length
B279: of 10m to geyser. (Colour of switch: White)
B281: SMAL POWER OUTLETS
A283: 37 | B283: Supply and install Crabtree Classic Range or similar and approved | M283: No. | O283: 5
B284: 16A single socket outlet switched in surface mounted 4 x 4 wall box
B285: yoke and cover plate with 2 x 2.5mm² PVC insulated conductors
B286: and 2.5mm² PVC insulated earth wire. Supply length of 20m to
B287: socket. (Colour of switch: White)
A289: 38 | B289: Supply and install Crabtree Classic Range 16A double socket | M289: No. | O289: 7
B290: or similar and approved outlet switched in flush mounted 4 x 4 wall
B291: box yoke and cover plate with 2 x 2.5mm² PVC insulated conductors
B292: and 2.5mm² PVC insulated earth wire. Supply length of 20m to
B293: socket. (Colour of switch: White)
A295: 39 | B295: Supply and install two channel powerskirting similar to Cabstrut | M295: m | O295: 25
B296: Platinum Double Compartment PVC Powerskirting (EP202)
B297: or similar and approved, including all elbows, tees, end caps
B298: and fixtures.
A300: 40 | B300: Supply and install the following power skirting outlets, including | M300: No. | O300: 8
... 70 more rows

Sheet Bill 25- Mechanical
A1: CONTRACT NUMBER: | C1: ='Bill 1-P&G'!C1:R2 -> CONSTRUCTION OF A NEW LAPA AND THE REFURBISHMENT OF GATE HOUSE AND ABLUTIONS, EXTERNAL AREAS AND THE INSPECTION AND WORKS TO EXISTING AND NEW SERVICES AT THE MOKOPANE BIODIVERSITY CONSERVATION CENTRE | S1: Bill
A2: ='Bill 1-P&G'!A2:B2 -> G540/2024 | S2: 25
A3: Item | B3: DESCRIPTION | Q3: RATE
A4: No. | M4: UNIT | O4: QUANTITY | S4: AMOUNT
B7: BILL NO. 25
B9: MECHANICAL
B11: FIRE PROTECTION EQUIPMENT
B13: Supply, deliver, installation, testing, commissioning and handing
B14: over in working order and maintenance during guarantee period.
B16: FIRE FIGHTING EQUIPMENT
B18: FIRE HYDRANTS
B20: Suction Hydrant
A22: 1 | B22: Right Angle Tamperproof Hydrant with 100mm | M22: No. | O22: 3
B23: Storz Outlet and 100mm Female BSP Inlet.
B24: (Installation downstream of water meter connection).
B26: Isolation Valve
A28: 2 | B28: 100mm FxF (Female x Female) | M28: No. | O28: 3
B29: Full Bore BSP Brass Ball Valve
B31: Backflow Preventer
A33: 3 | B33: Cast Iron Wafer Check Valve with Ductile | M33: No. | O33: 2
B34: Iron or 316 Stainless Steel Double Doors and EPDM Seal.
B35: This valve assembly downstream of the suction hydrant to be
B36: encased in a 600mm x 480mm medium grade cast iron manhole
B37: with frame for for access for maintenance.
B39: Twin Fire Brigade Booster Connection
A41: 4 | B41: 100mm Two-Port Booster with 65mm | M41: No. | O41: 2
B42: Brass Booster Connectors, Pressure Gauge with 100mm
B43: T/16 Inlet encased in a steel cover with front open.
B44: Pressure gauge Dial to read up to 2500kPa.
B45: (Installed downstream of Item Above).
B47: Note: Hand wheel type hydrants are strictly not acceptable.
B49: STATUTORY SIGNAGE
A51: 5 | B51: ABS signage in accordance with SANS 1186 for external | M51: No. | O51: 8
B52: raised external fire hydrants incorporating the pictographs in
B53: the standard 290mm x 290mm module size fixed on a purpose
B54: made triangular steel support such that the sign is visible
B55: from the two sides the viewing two sides along the road.
B56: The mounting height to be ±2000mm above finished
B57: ground level.
A73: BILL 25
B74: Bill 25 MECHANICAL carried to collection
A76: CONTRACT NUMBER: | C76: =C1 -> CONSTRUCTION OF A NEW LAPA AND THE REFURBISHMENT OF GATE HOUSE AND ABLUTIONS, EXTERNAL AREAS AND THE INSPECTION AND WORKS TO EXISTING AND NEW SERVICES AT THE MOKOPANE BIODIVERSITY CONSERVATION CENTRE | S76: Bill
A77: =A2 -> G540/2024 | S77: =S2 -> 25
A78: ITEM | B78: PAYMENT | C78: DESCRIPTION | Q78: RATE
A79: NO | B79: REFERS | M79: UNIT | O79: QUANTITY | S79: AMOUNT
B80: TO
B82: PIPING RETICULATION
B84: All rates supplied in this bill of quantities shall be deemed to
B85: include scaffolding to any height and fixing piping up to roof height.
B87: All piping rates supplied shall include couplings, bends, tees,
B88: sockets, pipe supports, anchors, along the running length.
B90: All pipes suspended from concrete slabs, roof, ceiling, etc, shall
B91: to include in the rates all necessary hanger be deemed brackets,
B92: threaded rods (irrespective of the suspension length), nuts,
B93: washers, anchors and drilling of holes in the concrete slab.
B95: All pipes are generally to be concealed inside recesses, ceiling
B96: voids except where it is necessary to feed an appliance and fixed
B97: with standard type pipe supports and brackets spaced at intervals
B98: strictly as per manufacturer's recommendations.
B100: ABOVE GROUND PIPING
B102: Galvanised Steel Pipework including Fittings
B104: All above-ground firewater pipes shall be Medium Grade
B105: Galvanised Steel to SANS 62-1:2013 for nominal sizes
B106: from 25mm up to and including 150mm.
B108: All pipes and fittings shall be installed strictly in accordance
B109: with the manufacturer's specifications, and recommendations.
B111: Pipes shall be colour coded in accordance with the
B112: requirements of SANS 10140
B113: Identification Colour Markings - Part 3: 2017 Contents of
B114: Pipelines or similar approved in close liaison with with the
B115: Fire Engineer.
B117: Medium Grade Steel Pipes
A119: 6 | B119: 100mm diameter pipes | M119: m | O119: 350
A121: 7 | B121: 80mm diameter pipes | M121: m | O121: 100
B123: EXTERNAL FIRE PIPING RETICULATION -BELOW GROUND
B124: (BY OTHERS)
B126: High Pressure HDPE Type IV PE 80 Class 16 pipes to
B127: SANS 4427:2008 used in conjunction with electro fusion and
B128: buttweld fittings or compression fittings or Victaulic Takstubs
B129: suitable for below-ground applications for the conveyance of
B130: potable water in reticulation systems in which continuous
B131: temperatures in excess of 25˚C are not encountered.
B133: All rates supplied in this bill of quantities shall be deemed to
B134: include scaffolding to any height and fixing piping up to roof
B135: height.
B137: All piping rates supplied shall include couplings, bends, tees,
B138: sockets, pipe supports, anchors, along the running length and
B139: backfilling and compaction.
A141: 8 | B141: Ø110mm High pressure pipe laid in ground not exceeding | M141: m | O141: 350
B142: 1000mm deep.
A144: 9 | B144: Ø75mm High pressure pipe laid in ground not exceeding | M144: m | O144: 100
B145: 1000mm deep.
A148: =A$73 -> BILL 25
B149: =B74 -> Bill 25 MECHANICAL carried to collection
A151: CONTRACT NUMBER: | C151: =C76 -> CONSTRUCTION OF A NEW LAPA AND THE REFURBISHMENT OF GATE HOUSE AND ABLUTIONS, EXTERNAL AREAS AND THE INSPECTION AND WORKS TO EXISTING AND NEW SERVICES AT THE MOKOPANE BIODIVERSITY CONSERVATION CENTRE | S151: Bill
A152: =A77 -> G540/2024 | S152: =S77 -> 25
A153: ITEM | B153: PAYMENT | C153: DESCRIPTION | Q153: RATE
A154: NO | B154: REFERS | M154: UNIT | O154: QUANTITY | S154: AMOUNT
B155: TO
B157: GROUND LEVEL FIRE WATER STORAGE AND PRESSURE
B158: BOOSTER PUMP SYSTEM
B160: FIRE + DOMESTIC WATER TANK
A162: 10 | B162: Supply and install sectional steel water tank constructed | M162: Sum | O162: 1
B163: from square shaped standard panel size 1.22m L x 1.22m W.
B164: Tank configuration to be such that the tank is subdivided into
B165: two equal sections with a divider ±200mm below the roof of
B166: the tank.
B167: Tank Full Structure = 200 000 Litres
B168: Note: Tank shop drawing to be issued to the Fire Engineer
B169: for approval prior to placement of order.
B170: All tank valves and accessories to be included in the price not
B171: necessarily limited to the following:
B172: - 2-off 600mm x 600mm access manholes on the roof of the
B173: tank
B174: - 2-off Ø200 air vents
B175: - 2-off catladders
B176: - 2 x 80mm mechanical ball float valves
B177: - 2 x Ø600mm Vortex Inhibitors
B178: - 1 x Ø100mm balancing valve (normally open)
B179: - 2 x Ø80mm drain valves (normally closed).
B180: - 2 x 150mm tank delivery OS & Y isolating valve
B181: - Earthworks
B182: - Concrete works
B184: FIRE BOOSTER PUMPS
A186: 11 | B186: Supply and install pressure switch operated packaged | M186: Item | O186: 1
B187: electrical & diesel
B188: Duty and Standby + jockey pump set complete
B189: with all standard isolating valves, strainers, non-return valves,
B190: pressure gauges etc.
B191: -Fire pump duty = 1200 Litres per minute @ 300kPa
B192: -Pump performance curves to be submitted to Fire Engineer
B193: for approval.
B195: PUMP ROOM ,PIPING AND ACCESSORIES
A197: 12 | B197: Supply and install all pump room interconnecting pipework | M197: Sum | O197: 1
B198: complete with fittings to include all valves, flexible
B199: connections accessories not limited to the following:
B200: - 4-off non-return valves one on each pump delivery pump
B201: - 4-off isolating valves one on each pump delivery pump
B202: - 4-off site glasses with flow indicators one on each pump
B203: cooling return to tank
B204: - 4-off pump suction compound pressure gauge one on each pump
B205: - 4-off pump delivery pressure gauge one on each pump
B206: - 1-off non-return valve on the jockey pump delivery
B207: - 1-off isolating valve downstream of the jockey pump
B208: non-return valve above
B209: - 1-off pump Auto-start Arrangement
B210: - 1-off Pump Room Electrical Distribution Board
B211: - 2-off Duty Electrical Motor Driven Pump Controller Panel
B212: - 1-off Electrical Jockey Pump Controller Panel
B213: - 4-off isolating valves one on the upstream and the other
B214: downstream of the direct reading flow meter
B215: - 4-off pressure gauges on either side of the of the direct
B216: reading "Gerand" or similar approved flow meter
B217: - 2 x 125mm direct readinfg flow meter on pump Proving
B218: Test Arrangement to tank
A224: =A$73 -> BILL 25
B225: =B149 -> Bill 25 MECHANICAL carried to collection
A227: CONTRACT NUMBER: | C227: =C76 -> CONSTRUCTION OF A NEW LAPA AND THE REFURBISHMENT OF GATE HOUSE AND ABLUTIONS, EXTERNAL AREAS AND THE INSPECTION AND WORKS TO EXISTING AND NEW SERVICES AT THE MOKOPANE BIODIVERSITY CONSERVATION CENTRE | S227: Bill
A228: =A2 -> G540/2024 | S228: =S2 -> 25
A229: ITEM | B229: PAYMENT | M229: Page No.
A230: NO | B230: REFERS | S230: AMOUNT
B231: TO
B233: =B9 -> MECHANICAL
B235: COLLECTION
B237: Total Brought Forward from Page No. | M237: 200
M239: =M237+1 -> 201
M241: =M239+1 -> 202
A298: =A$73 -> BILL 25
B299: Bill 25 MECHANICAL carried to summary

Sheet Bill 26- Provisional
A1: CONTRACT NUMBER: | C1: ='Bill 1-P&G'!C1 -> CONSTRUCTION OF A NEW LAPA AND THE REFURBISHMENT OF GATE HOUSE AND ABLUTIONS, EXTERNAL AREAS AND THE INSPECTION AND WORKS TO EXISTING AND NEW SERVICES AT THE MOKOPANE BIODIVERSITY CONSERVATION CENTRE | S1: Bill
A2: ='Bill 1-P&G'!A2 -> G540/2024 | S2: 26
A3: Item | B3: DESCRIPTION | Q3: RATE
A4: No. | M4: UNIT | O4: QUANTITY | S4: AMOUNT
B7: BILL NO. 26
B9: PROVISIONAL SUMS
B11: The following Provisional Sums are all NET amounts and are for
B12: work to be executed complete by Nominated/Selected
B13: Sub-Contractors or by the Contractor himself.
B15: Provisional Sums may be omitted or reduced at the Employers's
B16: sole discretion and the contractor shall not be entitled to claim for
B17: any loss by way of reductions or omissions of any discount, or
B18: percentage relating to Provisional Sums or P.C. amounts or any
B19: loss of profit related thereto.
B21: The Employer shall also have the right to send onto the works
B22: and install any furniture, finishings or fitments, machinery,
B23: equipment, etc., and to supply and execute any other special
B24: works not contained in this contract during this contract, and the
B25: Contractor shall not be entitled to any percentage or discount
B26: thereon.
B28: The Profit and Attendance on the following items will only be paid
B29: to the Contractor should a Nominated/Selected Sub-contractor
B30: conduct the work. If the allowance is directed for work to be done
B31: by the Contractor the Attendance amounts will not be paid to the
B32: Contractor.
B34: Refer to Clause C20 for the Adjustment of Attendance.
B36: N.B. Any builder's work that the Contractor may be called upon to
B37: do so in connection with any such special works or services will be
B38: measured and valued at schedule rates as executed.
B40: SPECIALIST SUB-CONTRACTORS TO THE MAIN CONTRACTOR
B42: COMMUNITY LIAISON OFFICER
A44: 1 | B44: Provide the sum of R68 000.00 (Sixty Eight Thousand Rands) for | M44: Item | Q44: R68,000.00 | S44: R68,000.00
B45: the appointment of a Community Liaison Officer
A47: 2 | B47: Allow for profit on above
A49: 3 | B49: Allow for attendance on above
B51: TRAINING OF LOCAL LABOUR
A53: 4 | B53: Provide the sum of R130 000.00 (One Hundred and Thirty | M53: Item | Q53: R130,000.00 | S53: R130,000.00
B54: Thousand Rands) for the Training of Local Labour
A56: 5 | B56: Allow for profit on above
A58: 6 | B58: Allow for attendance on above
B60: SMME MENTOR
A62: 7 | B62: Provide the sum of R200 000.00 (Two Hundred Thousand Rands) | M62: Item | Q62: R200,000.00 | S62: R200,000.00
B63: for SMME mentor
A65: 8 | B65: Allow for profit on above
A67: 9 | B67: Allow for attendance on above
B69: SECURITY GATES
A71: 10 | B71: Provide the sum of R50 000.00 (Fifty Thousand Rand) for security | M71: Item | Q71: R50,000.00 | S71: R50,000.00
B72: gates including installation executed complete
A74: 11 | B74: Allow for profit on above
A76: 12 | B76: Allow for attendance on above
A79: BILL No. 26
B80: Bill No. 26 PROVISIONAL SUMS carried to collection
A82: CONTRACT NUMBER: | C82: =C1 -> CONSTRUCTION OF A NEW LAPA AND THE REFURBISHMENT OF GATE HOUSE AND ABLUTIONS, EXTERNAL AREAS AND THE INSPECTION AND WORKS TO EXISTING AND NEW SERVICES AT THE MOKOPANE BIODIVERSITY CONSERVATION CENTRE | S82: Bill
A83: =A2 -> G540/2024 | S83: =S2 -> 26
A84: ITEM | B84: PAYMENT | C84: DESCRIPTION | Q84: RATE
A85: NO | B85: REFERS | M85: UNIT | O85: QUANTITY | S85: AMOUNT
B86: TO
B88: FANS TO LAPA
A90: 13 | B90: Provide the sum of R25 000.00 (Twenty Five Thousand Rand) | M90: Item | Q90: R25,000.00 | S90: R25,000.00
B91: for the supply and installation of fans to Lapa executed complete
A93: 14 | B93: Allow for profit on above
A95: 15 | B95: Allow for attendance on above
B97: ENTRANCE SIGNAGE
A99: 16 | B99: Provide the sum of R25 000.00 (Twenty Five Thousand Rand) for | M99: Item | Q99: R25,000.00 | S99: R25,000.00
B100: the supply and installation of entrance signage executed complete
A102: 17 | B102: Allow for profit on above
A104: 18 | B104: Allow for attendance on above
B106: ROOF STRUCTURE
A108: 19 | B108: Provide the sum of R200 000.00 (Two Hundred Thousand Rand) | M108: Item | Q108: R200,000.00 | S108: R200,000.00
B109: for the design, fabrication and installation of roof structures
B110: executed complete
A112: 20 | B112: Allow for profit on above
A114: 21 | B114: Allow for attendance on above
B116: ELECTRICAL WORKS
A118: 22 | B118: Provide the sum of R60 000.00 (Fifty Thousand Rand) | M118: Sum | Q118: R60,000.00 | S118: R60,000.00
B119: Relocation of existing water services on site, including cutting,
B120: capping, re-routing of pipework, fittings, valves, testing, and
B121: reinstatement
B123: WATER SERVICES
A125: 23 | B125: Provide the sum of R50 000.00 (Fifty Thousand Rand) | M125: Sum | Q125: R50,000.00 | S125: R50,000.00
B126: for the relocation of existing electrical services on site,
B127: including disconnection, cable trenching, cable laying, jointing,
B128: reconnection, and reinstatement
A130: 24 | B130: Provide the sum of R20 000.00 (Twenty Thousand Rand) | M130: Sum | Q130: R20,000.00 | S130: R20,000.00
B131: For concrete encasing
A133: 25 | B133: Provide the sum of R50 000.00 (Fifty Thousand) for breaking | M133: Sum | Q133: R50,000.00 | S133: R50,000.00
B134: down/demolishing and removing existing sewer line
B135: lot as directed by Principal Agent
A137: 26 | B137: Provide the sum of R30 000.00 (Thirty Thousand) for sewer connection | M137: Sum | Q137: R30,000.00 | S137: R30,000.00
B138: as directed by Principal Agent
A163: =A79 -> BILL No. 26
B164: =B80 -> Bill No. 26 PROVISIONAL SUMS carried to collection
A166: CONTRACT NUMBER: | C166: =C1 -> CONSTRUCTION OF A NEW LAPA AND THE REFURBISHMENT OF GATE HOUSE AND ABLUTIONS, EXTERNAL AREAS AND THE INSPECTION AND WORKS TO EXISTING AND NEW SERVICES AT THE MOKOPANE BIODIVERSITY CONSERVATION CENTRE | S166: Bill
A167: =A2 -> G540/2024 | S167: =S2 -> 26
A168: ITEM | B168: PAYMENT | M168: Page No.
A169: NO | B169: REFERS | S169: AMOUNT
B170: TO
B172: =B9 -> PROVISIONAL SUMS
B174: COLLECTION
M175: 204
B176: Total Brought Forward from Page No.
M177: =M175+1 -> 205
A240: =A79 -> BILL No. 26
B241: Bill No. 26 PROVISIONAL SUMS carried to Summary

Sheet BOQ - Summary
A1: CONTRACT NUMBER: | C1: ='Bill 1-P&G'!C1:R2 -> CONSTRUCTION OF A NEW LAPA AND THE REFURBISHMENT OF GATE HOUSE AND ABLUTIONS, EXTERNAL AREAS AND THE INSPECTION AND WORKS TO EXISTING AND NEW SERVICES AT THE MOKOPANE BIODIVERSITY CONSERVATION CENTRE | S1: SUMMARY
A2: ='Bill 26- Provisional'!A2 -> G540/2024
A3: Item | C3: DESCRIPTION | S3: AMOUNT
A4: No.
V6: =SUM(S9:T57) -> R0.00
A7: ='Bill 1-P&G'!B7 -> BILL NO. 1 | D7: ='Bill 1-P&G'!B9 -> PRELIMINARIES AND GENERAL
A9: ='Bill 2-Alterations'!B7 -> BILL NO. 2 | D9: ='Bill 2-Alterations'!B9 -> ALTERATION & REMOVAL WORKS
A11: ='Bill 3-Earthworks'!B7 -> BILL NO. 3 | D11: ='Bill 3-Earthworks'!B9 -> EARTHWORKS
A13: ='Bill 4-Concrete'!B7 -> BILL NO. 4 | D13: ='Bill 4-Concrete'!B9 -> CONCRETE, FORMWORK AND REINFORCEMENT
A15: ='Bill 5-Masonry'!B7 -> BILL NO. 5 | D15: ='Bill 5-Masonry'!B9 -> MASONRY
A17: ='Bill 6-Waterproofing'!B7 -> BILL No. 6 | D17: ='Bill 6-Waterproofing'!B9 -> WATERPROOFING
A19: ='Bill 7-Roof'!B7 -> BILL NO. 7 | D19: ='Bill 7-Roof'!B9 -> ROOF COVERINGS
A21: ='Bill 8-Capentry'!B7 -> BILL NO. 8 | D21: ='Bill 8-Capentry'!B9 -> CARPENTRY & JOINERY
A23: ='Bill 9-Ceilings'!B7 -> BILL NO. 9 | D23: ='Bill 9-Ceilings'!B9 -> CEILINGS
A25: ='Bill 10-Iron Mongery'!B7 -> BILL NO. 10 | D25: ='Bill 10-Iron Mongery'!B9 -> IRONMONGERY
A27: ='Bill 11-Metal'!B7 -> BILL NO. 11 | D27: ='Bill 11-Metal'!B9 -> METALWORK
A29: ='Bill 12-Structural'!B7 -> BILL NO. 12 | D29: ='Bill 12-Structural'!B9 -> STRUCTURAL WORK
A31: ='Bill 13-Plastering'!B7 -> BILL NO. 13 | D31: ='Bill 13-Plastering'!B9 -> PLASTERING
A33: ='Bill 14- Tile'!B7 -> BILL NO. 14 | D33: ='Bill 14- Tile'!B9 -> TILING
A35: ='Bill 15-Plumbing'!B7 -> BILL NO. 15 | D35: ='Bill 15-Plumbing'!B9 -> PLUMBING & DRAINAGE
A37: ='Bill 16-Painting'!B7 -> BILL NO. 16 | D37: ='Bill 16-Painting'!B9 -> PAINTWORK
A39: ='Bill 17-Site Works'!B7 -> BILL NO. 17 | D39: ='Bill 17-Site Works'!B9 -> SITE WORKS AND DEMOLITIONS
A41: ='Bill 18- Road'!B7 -> BILL NO. 18 | D41: ='Bill 18- Road'!B9 -> ROADWORKS, PAVING
A43: ='Bill 19- Fence '!B7 -> BILL NO. 19 | D43: ='Bill 19- Fence '!B9 -> FENCING AND GATES
A45: ='Bill 20- Water '!B7 -> BILL NO. 20 | D45: ='Bill 20- Water '!B9 -> WATER RETICULATION
A47: ='Bill 21- Sewer '!B7 -> BILL NO. 21 | D47: ='Bill 21- Sewer '!B9 -> SEWER RETICULATION
A49: ='Bill 22- Stormwater'!B7 -> BILL NO. 22 | D49: ='Bill 22- Stormwater'!B9 -> STORMWATER DRAINAGE, SUB-SOIL DRAINAGE
A51: ='Bill 23- Furniture '!B7 -> BILL NO. 23 | D51: ='Bill 23- Furniture '!B9 -> STREET FURNITURE
A53: ='Bill 24- Electrical'!B7 -> BILL NO. 24 | D53: ='Bill 24- Electrical'!B9 -> ELECTRICAL
A55: ='Bill 25- Mechanical'!B7 -> BILL NO. 25 | D55: ='Bill 25- Mechanical'!B9 -> MECHANICAL
A57: ='Bill 26- Provisional'!B7 -> BILL NO. 26 | D57: ='Bill 26- Provisional'!B9 -> PROVISIONAL SUMS
B59: SUBTOTAL
B62: ADD 10% CONTIGENCY
B65: TOTAL
B68: ADD 15% VAT
B71: TOTAL PROJECT CONSTRUCTION COSTS
